{"text_format":"3","workbook":"xlsx","n_sheets":12,"sheets":["JAN","FEB","MAR","APR","MAI","JUN","JUL","AUG","SEP","OKT","NOV","DES"],"not_rendered":{"defined_names":40},"read":"whole","date_system":"1900"}

{"sheet":"JAN","index":0,"n_rows":20,"n_cols":9,"rows_kept":20,"merged":[[16,2,17,2],[16,3,17,3],[17,4,19,8]]}
[null,"JAN","SØN",{"$f":"UPPER(TEXT(D3,\"aaa\"))","v":"MAN"},"TIR","ONS","TOR","FRE","LØR"]
[null,{"$f":"YEAR(TODAY())","v":2018}]
[null,null,{"$f":"DagerOgUker+DATE(Kalenderår,1,1)-WEEKDAY(DATE(Kalenderår,1,1),(Ukestart=\"MAN\")+1)+1","v":"2017-12-31"},"2018-01-01","2018-01-02","2018-01-03","2018-01-04","2018-01-05","2018-01-06"]
[null,null,{"$f":"IF(DAY(KalenderDag)=1,CONCATENATE(\"Uke \",WEEKNUM(KalenderDag),\"/Dag \",KalenderDag-DATE(YEAR(KalenderDag),1,0)),CONCATENATE(\"Dag \",KalenderDag-DATE(YEAR(KalenderDag),1,0)))","v":"Dag 365"},{"$f":"IF(DAY(KalenderDag)=1,CONCATENATE(\"Uke \",WEEKNUM(KalenderDag),\"/Dag \",KalenderDag-DATE(YEAR(KalenderDag),1,0)),CONCATENATE(\"Dag \",KalenderDag-DATE(YEAR(KalenderDag),1,0)))","v":"Uke 1/Dag 1"},{"$f":"IF(DAY(KalenderDag)=1,CONCATENATE(\"Uke \",WEEKNUM(KalenderDag),\"/Dag \",KalenderDag-DATE(YEAR(KalenderDag),1,0)),CONCATENATE(\"Dag \",KalenderDag-DATE(YEAR(KalenderDag),1,0)))","v":"Dag 2"},{"$f":"IF(DAY(KalenderDag)=1,CONCATENATE(\"Uke \",WEEKNUM(KalenderDag),\"/Dag \",KalenderDag-DATE(YEAR(KalenderDag),1,0)),CONCATENATE(\"Dag \",KalenderDag-DATE(YEAR(KalenderDag),1,0)))","v":"Dag 3"},{"$f":"IF(DAY(KalenderDag)=1,CONCATENATE(\"Uke \",WEEKNUM(KalenderDag),\"/Dag \",KalenderDag-DATE(YEAR(KalenderDag),1,0)),CONCATENATE(\"Dag \",KalenderDag-DATE(YEAR(KalenderDag),1,0)))","v":"Dag 4"},{"$f":"IF(DAY(KalenderDag)=1,CONCATENATE(\"Uke \",WEEKNUM(KalenderDag),\"/Dag \",KalenderDag-DATE(YEAR(KalenderDag),1,0)),CONCATENATE(\"Dag \",KalenderDag-DATE(YEAR(KalenderDag),1,0)))","v":"Dag 5"},{"$f":"IF(DAY(KalenderDag)=1,CONCATENATE(\"Uke \",WEEKNUM(KalenderDag),\"/Dag \",KalenderDag-DATE(YEAR(KalenderDag),1,0)),CONCATENATE(\"Dag \",KalenderDag-DATE(YEAR(KalenderDag),1,0)))","v":"Dag 6"}]
[]
[null,null,{"$f":"DagerOgUker+DATE(Kalenderår,1,1)-WEEKDAY(DATE(Kalenderår,1,1),(Ukestart=\"MAN\")+1)+8","v":"2018-01-07"},"2018-01-08","2018-01-09","2018-01-10","2018-01-11","2018-01-12","2018-01-13"]
[null,null,{"$f":"IF(WEEKDAY(KalenderDag)=Ukestartverdi,CONCATENATE(\"Uke \",WEEKNUM(KalenderDag),\"/Dag \",KalenderDag-DATE(YEAR(KalenderDag),1,0)),CONCATENATE(\"Dag \",KalenderDag-DATE(YEAR(KalenderDag),1,0)))","v":"Uke 2/Dag 7"},{"$f":"IF(WEEKDAY(KalenderDag)=Ukestartverdi,CONCATENATE(\"Uke \",WEEKNUM(KalenderDag),\"/Dag \",KalenderDag-DATE(YEAR(KalenderDag),1,0)),CONCATENATE(\"Dag \",KalenderDag-DATE(YEAR(KalenderDag),1,0)))","v":"Dag 8"},{"$f":"IF(WEEKDAY(KalenderDag)=Ukestartverdi,CONCATENATE(\"Uke \",WEEKNUM(KalenderDag),\"/Dag \",KalenderDag-DATE(YEAR(KalenderDag),1,0)),CONCATENATE(\"Dag \",KalenderDag-DATE(YEAR(KalenderDag),1,0)))","v":"Dag 9"},{"$f":"IF(WEEKDAY(KalenderDag)=Ukestartverdi,CONCATENATE(\"Uke \",WEEKNUM(KalenderDag),\"/Dag \",KalenderDag-DATE(YEAR(KalenderDag),1,0)),CONCATENATE(\"Dag \",KalenderDag-DATE(YEAR(KalenderDag),1,0)))","v":"Dag 10"},{"$f":"IF(WEEKDAY(KalenderDag)=Ukestartverdi,CONCATENATE(\"Uke \",WEEKNUM(KalenderDag),\"/Dag \",KalenderDag-DATE(YEAR(KalenderDag),1,0)),CONCATENATE(\"Dag \",KalenderDag-DATE(YEAR(KalenderDag),1,0)))","v":"Dag 11"},{"$f":"IF(WEEKDAY(KalenderDag)=Ukestartverdi,CONCATENATE(\"Uke \",WEEKNUM(KalenderDag),\"/Dag \",KalenderDag-DATE(YEAR(KalenderDag),1,0)),CONCATENATE(\"Dag \",KalenderDag-DATE(YEAR(KalenderDag),1,0)))","v":"Dag 12"},{"$f":"IF(WEEKDAY(KalenderDag)=Ukestartverdi,CONCATENATE(\"Uke \",WEEKNUM(KalenderDag),\"/Dag \",KalenderDag-DATE(YEAR(KalenderDag),1,0)),CONCATENATE(\"Dag \",KalenderDag-DATE(YEAR(KalenderDag),1,0)))","v":"Dag 13"}]
[]
[null,null,{"$f":"DagerOgUker+DATE(Kalenderår,1,1)-WEEKDAY(DATE(Kalenderår,1,1),(Ukestart=\"MAN\")+1)+15","v":"2018-01-14"},"2018-01-15","2018-01-16","2018-01-17","2018-01-18","2018-01-19","2018-01-20"]
[null,null,{"$f":"IF(WEEKDAY(KalenderDag)=Ukestartverdi,CONCATENATE(\"Uke \",WEEKNUM(KalenderDag),\"/Dag \",KalenderDag-DATE(YEAR(KalenderDag),1,0)),CONCATENATE(\"Dag \",KalenderDag-DATE(YEAR(KalenderDag),1,0)))","v":"Uke 3/Dag 14"},{"$f":"IF(WEEKDAY(KalenderDag)=Ukestartverdi,CONCATENATE(\"Uke \",WEEKNUM(KalenderDag),\"/Dag \",KalenderDag-DATE(YEAR(KalenderDag),1,0)),CONCATENATE(\"Dag \",KalenderDag-DATE(YEAR(KalenderDag),1,0)))","v":"Dag 15"},{"$f":"IF(WEEKDAY(KalenderDag)=Ukestartverdi,CONCATENATE(\"Uke \",WEEKNUM(KalenderDag),\"/Dag \",KalenderDag-DATE(YEAR(KalenderDag),1,0)),CONCATENATE(\"Dag \",KalenderDag-DATE(YEAR(KalenderDag),1,0)))","v":"Dag 16"},{"$f":"IF(WEEKDAY(KalenderDag)=Ukestartverdi,CONCATENATE(\"Uke \",WEEKNUM(KalenderDag),\"/Dag \",KalenderDag-DATE(YEAR(KalenderDag),1,0)),CONCATENATE(\"Dag \",KalenderDag-DATE(YEAR(KalenderDag),1,0)))","v":"Dag 17"},{"$f":"IF(WEEKDAY(KalenderDag)=Ukestartverdi,CONCATENATE(\"Uke \",WEEKNUM(KalenderDag),\"/Dag \",KalenderDag-DATE(YEAR(KalenderDag),1,0)),CONCATENATE(\"Dag \",KalenderDag-DATE(YEAR(KalenderDag),1,0)))","v":"Dag 18"},{"$f":"IF(WEEKDAY(KalenderDag)=Ukestartverdi,CONCATENATE(\"Uke \",WEEKNUM(KalenderDag),\"/Dag \",KalenderDag-DATE(YEAR(KalenderDag),1,0)),CONCATENATE(\"Dag \",KalenderDag-DATE(YEAR(KalenderDag),1,0)))","v":"Dag 19"},{"$f":"IF(WEEKDAY(KalenderDag)=Ukestartverdi,CONCATENATE(\"Uke \",WEEKNUM(KalenderDag),\"/Dag \",KalenderDag-DATE(YEAR(KalenderDag),1,0)),CONCATENATE(\"Dag \",KalenderDag-DATE(YEAR(KalenderDag),1,0)))","v":"Dag 20"}]
[]
[null,null,{"$f":"DagerOgUker+DATE(Kalenderår,1,1)-WEEKDAY(DATE(Kalenderår,1,1),(Ukestart=\"MAN\")+1)+22","v":"2018-01-21"},"2018-01-22","2018-01-23","2018-01-24","2018-01-25","2018-01-26","2018-01-27"]
[null,null,{"$f":"IF(WEEKDAY(KalenderDag)=Ukestartverdi,CONCATENATE(\"Uke \",WEEKNUM(KalenderDag),\"/Dag \",KalenderDag-DATE(YEAR(KalenderDag),1,0)),CONCATENATE(\"Dag \",KalenderDag-DATE(YEAR(KalenderDag),1,0)))","v":"Uke 4/Dag 21"},{"$f":"IF(WEEKDAY(KalenderDag)=Ukestartverdi,CONCATENATE(\"Uke \",WEEKNUM(KalenderDag),\"/Dag \",KalenderDag-DATE(YEAR(KalenderDag),1,0)),CONCATENATE(\"Dag \",KalenderDag-DATE(YEAR(KalenderDag),1,0)))","v":"Dag 22"},{"$f":"IF(WEEKDAY(KalenderDag)=Ukestartverdi,CONCATENATE(\"Uke \",WEEKNUM(KalenderDag),\"/Dag \",KalenderDag-DATE(YEAR(KalenderDag),1,0)),CONCATENATE(\"Dag \",KalenderDag-DATE(YEAR(KalenderDag),1,0)))","v":"Dag 23"},{"$f":"IF(WEEKDAY(KalenderDag)=Ukestartverdi,CONCATENATE(\"Uke \",WEEKNUM(KalenderDag),\"/Dag \",KalenderDag-DATE(YEAR(KalenderDag),1,0)),CONCATENATE(\"Dag \",KalenderDag-DATE(YEAR(KalenderDag),1,0)))","v":"Dag 24"},{"$f":"IF(WEEKDAY(KalenderDag)=Ukestartverdi,CONCATENATE(\"Uke \",WEEKNUM(KalenderDag),\"/Dag \",KalenderDag-DATE(YEAR(KalenderDag),1,0)),CONCATENATE(\"Dag \",KalenderDag-DATE(YEAR(KalenderDag),1,0)))","v":"Dag 25"},{"$f":"IF(WEEKDAY(KalenderDag)=Ukestartverdi,CONCATENATE(\"Uke \",WEEKNUM(KalenderDag),\"/Dag \",KalenderDag-DATE(YEAR(KalenderDag),1,0)),CONCATENATE(\"Dag \",KalenderDag-DATE(YEAR(KalenderDag),1,0)))","v":"Dag 26"},{"$f":"IF(WEEKDAY(KalenderDag)=Ukestartverdi,CONCATENATE(\"Uke \",WEEKNUM(KalenderDag),\"/Dag \",KalenderDag-DATE(YEAR(KalenderDag),1,0)),CONCATENATE(\"Dag \",KalenderDag-DATE(YEAR(KalenderDag),1,0)))","v":"Dag 27"}]
[]
[null,null,{"$f":"DagerOgUker+DATE(Kalenderår,1,1)-WEEKDAY(DATE(Kalenderår,1,1),(Ukestart=\"MAN\")+1)+29","v":"2018-01-28"},"2018-01-29","2018-01-30","2018-01-31","2018-02-01","2018-02-02","2018-02-03"]
[null,null,{"$f":"IF(WEEKDAY(KalenderDag)=Ukestartverdi,CONCATENATE(\"Uke \",WEEKNUM(KalenderDag),\"/Dag \",KalenderDag-DATE(YEAR(KalenderDag),1,0)),CONCATENATE(\"Dag \",KalenderDag-DATE(YEAR(KalenderDag),1,0)))","v":"Uke 5/Dag 28"},{"$f":"IF(WEEKDAY(KalenderDag)=Ukestartverdi,CONCATENATE(\"Uke \",WEEKNUM(KalenderDag),\"/Dag \",KalenderDag-DATE(YEAR(KalenderDag),1,0)),CONCATENATE(\"Dag \",KalenderDag-DATE(YEAR(KalenderDag),1,0)))","v":"Dag 29"},{"$f":"IF(WEEKDAY(KalenderDag)=Ukestartverdi,CONCATENATE(\"Uke \",WEEKNUM(KalenderDag),\"/Dag \",KalenderDag-DATE(YEAR(KalenderDag),1,0)),CONCATENATE(\"Dag \",KalenderDag-DATE(YEAR(KalenderDag),1,0)))","v":"Dag 30"},{"$f":"IF(WEEKDAY(KalenderDag)=Ukestartverdi,CONCATENATE(\"Uke \",WEEKNUM(KalenderDag),\"/Dag \",KalenderDag-DATE(YEAR(KalenderDag),1,0)),CONCATENATE(\"Dag \",KalenderDag-DATE(YEAR(KalenderDag),1,0)))","v":"Dag 31"},{"$f":"IF(WEEKDAY(KalenderDag)=Ukestartverdi,CONCATENATE(\"Uke \",WEEKNUM(KalenderDag),\"/Dag \",KalenderDag-DATE(YEAR(KalenderDag),1,0)),CONCATENATE(\"Dag \",KalenderDag-DATE(YEAR(KalenderDag),1,0)))","v":"Dag 32"},{"$f":"IF(WEEKDAY(KalenderDag)=Ukestartverdi,CONCATENATE(\"Uke \",WEEKNUM(KalenderDag),\"/Dag \",KalenderDag-DATE(YEAR(KalenderDag),1,0)),CONCATENATE(\"Dag \",KalenderDag-DATE(YEAR(KalenderDag),1,0)))","v":"Dag 33"},{"$f":"IF(WEEKDAY(KalenderDag)=Ukestartverdi,CONCATENATE(\"Uke \",WEEKNUM(KalenderDag),\"/Dag \",KalenderDag-DATE(YEAR(KalenderDag),1,0)),CONCATENATE(\"Dag \",KalenderDag-DATE(YEAR(KalenderDag),1,0)))","v":"Dag 34"}]
[{"$nulls":4},"NOTATER"]
[]
[null,null,{"$f":"DagerOgUker+DATE(Kalenderår,1,1)-WEEKDAY(DATE(Kalenderår,1,1),(Ukestart=\"MAN\")+1)+36","v":"2018-02-04"},"2018-02-05"]
[null,null,{"$f":"IF(WEEKDAY(KalenderDag)=Ukestartverdi,CONCATENATE(\"Uke \",WEEKNUM(KalenderDag),\"/Dag \",KalenderDag-DATE(YEAR(KalenderDag),1,0)),CONCATENATE(\"Dag \",KalenderDag-DATE(YEAR(KalenderDag),1,0)))","v":"Uke 6/Dag 35"},{"$f":"IF(WEEKDAY(KalenderDag)=Ukestartverdi,CONCATENATE(\"Uke \",WEEKNUM(KalenderDag),\"/Dag \",KalenderDag-DATE(YEAR(KalenderDag),1,0)),CONCATENATE(\"Dag \",KalenderDag-DATE(YEAR(KalenderDag),1,0)))","v":"Dag 36"}]

{"sheet":"FEB","index":1,"n_rows":20,"n_cols":9,"rows_kept":20,"merged":[[16,2,17,2],[17,4,19,8]]}
[null,"FEB",{"$f":"UPPER(TEXT(Ukestart,\"ddd\"))","v":"SØN"},{"$f":"UPPER(TEXT(D3,\"aaa\"))","v":"MAN"},"TIR","ONS","TOR","FRE","LØR"]
[null,{"$f":"Kalenderår","v":2018}]
[null,null,{"$f":"DagerOgUker+DATE(Kalenderår,2,1)-WEEKDAY(DATE(Kalenderår,2,1),(Ukestart=\"MAN\")+1)+1","v":"2018-01-28"},"2018-01-29","2018-01-30","2018-01-31","2018-02-01","2018-02-02","2018-02-03"]
[null,null,{"$f":"IF(DAY(KalenderDag)=1,CONCATENATE(\"Uke \",WEEKNUM(KalenderDag),\"/Dag \",KalenderDag-DATE(YEAR(KalenderDag),1,0)),CONCATENATE(\"Dag \",KalenderDag-DATE(YEAR(KalenderDag),1,0)))","v":"Dag 28"},{"$f":"IF(DAY(KalenderDag)=1,CONCATENATE(\"Uke \",WEEKNUM(KalenderDag),\"/Dag \",KalenderDag-DATE(YEAR(KalenderDag),1,0)),CONCATENATE(\"Dag \",KalenderDag-DATE(YEAR(KalenderDag),1,0)))","v":"Dag 29"},{"$f":"IF(DAY(KalenderDag)=1,CONCATENATE(\"Uke \",WEEKNUM(KalenderDag),\"/Dag \",KalenderDag-DATE(YEAR(KalenderDag),1,0)),CONCATENATE(\"Dag \",KalenderDag-DATE(YEAR(KalenderDag),1,0)))","v":"Dag 30"},{"$f":"IF(DAY(KalenderDag)=1,CONCATENATE(\"Uke \",WEEKNUM(KalenderDag),\"/Dag \",KalenderDag-DATE(YEAR(KalenderDag),1,0)),CONCATENATE(\"Dag \",KalenderDag-DATE(YEAR(KalenderDag),1,0)))","v":"Dag 31"},{"$f":"IF(DAY(KalenderDag)=1,CONCATENATE(\"Uke \",WEEKNUM(KalenderDag),\"/Dag \",KalenderDag-DATE(YEAR(KalenderDag),1,0)),CONCATENATE(\"Dag \",KalenderDag-DATE(YEAR(KalenderDag),1,0)))","v":"Uke 5/Dag 32"},{"$f":"IF(DAY(KalenderDag)=1,CONCATENATE(\"Uke \",WEEKNUM(KalenderDag),\"/Dag \",KalenderDag-DATE(YEAR(KalenderDag),1,0)),CONCATENATE(\"Dag \",KalenderDag-DATE(YEAR(KalenderDag),1,0)))","v":"Dag 33"},{"$f":"IF(DAY(KalenderDag)=1,CONCATENATE(\"Uke \",WEEKNUM(KalenderDag),\"/Dag \",KalenderDag-DATE(YEAR(KalenderDag),1,0)),CONCATENATE(\"Dag \",KalenderDag-DATE(YEAR(KalenderDag),1,0)))","v":"Dag 34"}]
[]
[null,null,{"$f":"DagerOgUker+DATE(Kalenderår,2,1)-WEEKDAY(DATE(Kalenderår,2,1),(Ukestart=\"MAN\")+1)+8","v":"2018-02-04"},"2018-02-05","2018-02-06","2018-02-07","2018-02-08","2018-02-09","2018-02-10"]
[null,null,{"$f":"IF(WEEKDAY(KalenderDag)=Ukestartverdi,CONCATENATE(\"Uke \",WEEKNUM(KalenderDag),\"/Dag \",KalenderDag-DATE(YEAR(KalenderDag),1,0)),CONCATENATE(\"Dag \",KalenderDag-DATE(YEAR(KalenderDag),1,0)))","v":"Uke 6/Dag 35"},{"$f":"IF(WEEKDAY(KalenderDag)=Ukestartverdi,CONCATENATE(\"Uke \",WEEKNUM(KalenderDag),\"/Dag \",KalenderDag-DATE(YEAR(KalenderDag),1,0)),CONCATENATE(\"Dag \",KalenderDag-DATE(YEAR(KalenderDag),1,0)))","v":"Dag 36"},{"$f":"IF(WEEKDAY(KalenderDag)=Ukestartverdi,CONCATENATE(\"Uke \",WEEKNUM(KalenderDag),\"/Dag \",KalenderDag-DATE(YEAR(KalenderDag),1,0)),CONCATENATE(\"Dag \",KalenderDag-DATE(YEAR(KalenderDag),1,0)))","v":"Dag 37"},{"$f":"IF(WEEKDAY(KalenderDag)=Ukestartverdi,CONCATENATE(\"Uke \",WEEKNUM(KalenderDag),\"/Dag \",KalenderDag-DATE(YEAR(KalenderDag),1,0)),CONCATENATE(\"Dag \",KalenderDag-DATE(YEAR(KalenderDag),1,0)))","v":"Dag 38"},{"$f":"IF(WEEKDAY(KalenderDag)=Ukestartverdi,CONCATENATE(\"Uke \",WEEKNUM(KalenderDag),\"/Dag \",KalenderDag-DATE(YEAR(KalenderDag),1,0)),CONCATENATE(\"Dag \",KalenderDag-DATE(YEAR(KalenderDag),1,0)))","v":"Dag 39"},{"$f":"IF(WEEKDAY(KalenderDag)=Ukestartverdi,CONCATENATE(\"Uke \",WEEKNUM(KalenderDag),\"/Dag \",KalenderDag-DATE(YEAR(KalenderDag),1,0)),CONCATENATE(\"Dag \",KalenderDag-DATE(YEAR(KalenderDag),1,0)))","v":"Dag 40"},{"$f":"IF(WEEKDAY(KalenderDag)=Ukestartverdi,CONCATENATE(\"Uke \",WEEKNUM(KalenderDag),\"/Dag \",KalenderDag-DATE(YEAR(KalenderDag),1,0)),CONCATENATE(\"Dag \",KalenderDag-DATE(YEAR(KalenderDag),1,0)))","v":"Dag 41"}]
[]
[null,null,{"$f":"DagerOgUker+DATE(Kalenderår,2,1)-WEEKDAY(DATE(Kalenderår,2,1),(Ukestart=\"MAN\")+1)+15","v":"2018-02-11"},"2018-02-12","2018-02-13","2018-02-14","2018-02-15","2018-02-16","2018-02-17"]
[null,null,{"$f":"IF(WEEKDAY(KalenderDag)=Ukestartverdi,CONCATENATE(\"Uke \",WEEKNUM(KalenderDag),\"/Dag \",KalenderDag-DATE(YEAR(KalenderDag),1,0)),CONCATENATE(\"Dag \",KalenderDag-DATE(YEAR(KalenderDag),1,0)))","v":"Uke 7/Dag 42"},{"$f":"IF(WEEKDAY(KalenderDag)=Ukestartverdi,CONCATENATE(\"Uke \",WEEKNUM(KalenderDag),\"/Dag \",KalenderDag-DATE(YEAR(KalenderDag),1,0)),CONCATENATE(\"Dag \",KalenderDag-DATE(YEAR(KalenderDag),1,0)))","v":"Dag 43"},{"$f":"IF(WEEKDAY(KalenderDag)=Ukestartverdi,CONCATENATE(\"Uke \",WEEKNUM(KalenderDag),\"/Dag \",KalenderDag-DATE(YEAR(KalenderDag),1,0)),CONCATENATE(\"Dag \",KalenderDag-DATE(YEAR(KalenderDag),1,0)))","v":"Dag 44"},{"$f":"IF(WEEKDAY(KalenderDag)=Ukestartverdi,CONCATENATE(\"Uke \",WEEKNUM(KalenderDag),\"/Dag \",KalenderDag-DATE(YEAR(KalenderDag),1,0)),CONCATENATE(\"Dag \",KalenderDag-DATE(YEAR(KalenderDag),1,0)))","v":"Dag 45"},{"$f":"IF(WEEKDAY(KalenderDag)=Ukestartverdi,CONCATENATE(\"Uke \",WEEKNUM(KalenderDag),\"/Dag \",KalenderDag-DATE(YEAR(KalenderDag),1,0)),CONCATENATE(\"Dag \",KalenderDag-DATE(YEAR(KalenderDag),1,0)))","v":"Dag 46"},{"$f":"IF(WEEKDAY(KalenderDag)=Ukestartverdi,CONCATENATE(\"Uke \",WEEKNUM(KalenderDag),\"/Dag \",KalenderDag-DATE(YEAR(KalenderDag),1,0)),CONCATENATE(\"Dag \",KalenderDag-DATE(YEAR(KalenderDag),1,0)))","v":"Dag 47"},{"$f":"IF(WEEKDAY(KalenderDag)=Ukestartverdi,CONCATENATE(\"Uke \",WEEKNUM(KalenderDag),\"/Dag \",KalenderDag-DATE(YEAR(KalenderDag),1,0)),CONCATENATE(\"Dag \",KalenderDag-DATE(YEAR(KalenderDag),1,0)))","v":"Dag 48"}]
[]
[null,null,{"$f":"DagerOgUker+DATE(Kalenderår,2,1)-WEEKDAY(DATE(Kalenderår,2,1),(Ukestart=\"MAN\")+1)+22","v":"2018-02-18"},"2018-02-19","2018-02-20","2018-02-21","2018-02-22","2018-02-23","2018-02-24"]
[null,null,{"$f":"IF(WEEKDAY(KalenderDag)=Ukestartverdi,CONCATENATE(\"Uke \",WEEKNUM(KalenderDag),\"/Dag \",KalenderDag-DATE(YEAR(KalenderDag),1,0)),CONCATENATE(\"Dag \",KalenderDag-DATE(YEAR(KalenderDag),1,0)))","v":"Uke 8/Dag 49"},{"$f":"IF(WEEKDAY(KalenderDag)=Ukestartverdi,CONCATENATE(\"Uke \",WEEKNUM(KalenderDag),\"/Dag \",KalenderDag-DATE(YEAR(KalenderDag),1,0)),CONCATENATE(\"Dag \",KalenderDag-DATE(YEAR(KalenderDag),1,0)))","v":"Dag 50"},{"$f":"IF(WEEKDAY(KalenderDag)=Ukestartverdi,CONCATENATE(\"Uke \",WEEKNUM(KalenderDag),\"/Dag \",KalenderDag-DATE(YEAR(KalenderDag),1,0)),CONCATENATE(\"Dag \",KalenderDag-DATE(YEAR(KalenderDag),1,0)))","v":"Dag 51"},{"$f":"IF(WEEKDAY(KalenderDag)=Ukestartverdi,CONCATENATE(\"Uke \",WEEKNUM(KalenderDag),\"/Dag \",KalenderDag-DATE(YEAR(KalenderDag),1,0)),CONCATENATE(\"Dag \",KalenderDag-DATE(YEAR(KalenderDag),1,0)))","v":"Dag 52"},{"$f":"IF(WEEKDAY(KalenderDag)=Ukestartverdi,CONCATENATE(\"Uke \",WEEKNUM(KalenderDag),\"/Dag \",KalenderDag-DATE(YEAR(KalenderDag),1,0)),CONCATENATE(\"Dag \",KalenderDag-DATE(YEAR(KalenderDag),1,0)))","v":"Dag 53"},{"$f":"IF(WEEKDAY(KalenderDag)=Ukestartverdi,CONCATENATE(\"Uke \",WEEKNUM(KalenderDag),\"/Dag \",KalenderDag-DATE(YEAR(KalenderDag),1,0)),CONCATENATE(\"Dag \",KalenderDag-DATE(YEAR(KalenderDag),1,0)))","v":"Dag 54"},{"$f":"IF(WEEKDAY(KalenderDag)=Ukestartverdi,CONCATENATE(\"Uke \",WEEKNUM(KalenderDag),\"/Dag \",KalenderDag-DATE(YEAR(KalenderDag),1,0)),CONCATENATE(\"Dag \",KalenderDag-DATE(YEAR(KalenderDag),1,0)))","v":"Dag 55"}]
[]
[null,null,{"$f":"DagerOgUker+DATE(Kalenderår,2,1)-WEEKDAY(DATE(Kalenderår,2,1),(Ukestart=\"MAN\")+1)+29","v":"2018-02-25"},"2018-02-26","2018-02-27","2018-02-28","2018-03-01","2018-03-02","2018-03-03"]
[null,null,{"$f":"IF(WEEKDAY(KalenderDag)=Ukestartverdi,CONCATENATE(\"Uke \",WEEKNUM(KalenderDag),\"/Dag \",KalenderDag-DATE(YEAR(KalenderDag),1,0)),CONCATENATE(\"Dag \",KalenderDag-DATE(YEAR(KalenderDag),1,0)))","v":"Uke 9/Dag 56"},{"$f":"IF(WEEKDAY(KalenderDag)=Ukestartverdi,CONCATENATE(\"Uke \",WEEKNUM(KalenderDag),\"/Dag \",KalenderDag-DATE(YEAR(KalenderDag),1,0)),CONCATENATE(\"Dag \",KalenderDag-DATE(YEAR(KalenderDag),1,0)))","v":"Dag 57"},{"$f":"IF(WEEKDAY(KalenderDag)=Ukestartverdi,CONCATENATE(\"Uke \",WEEKNUM(KalenderDag),\"/Dag \",KalenderDag-DATE(YEAR(KalenderDag),1,0)),CONCATENATE(\"Dag \",KalenderDag-DATE(YEAR(KalenderDag),1,0)))","v":"Dag 58"},{"$f":"IF(WEEKDAY(KalenderDag)=Ukestartverdi,CONCATENATE(\"Uke \",WEEKNUM(KalenderDag),\"/Dag \",KalenderDag-DATE(YEAR(KalenderDag),1,0)),CONCATENATE(\"Dag \",KalenderDag-DATE(YEAR(KalenderDag),1,0)))","v":"Dag 59"},{"$f":"IF(WEEKDAY(KalenderDag)=Ukestartverdi,CONCATENATE(\"Uke \",WEEKNUM(KalenderDag),\"/Dag \",KalenderDag-DATE(YEAR(KalenderDag),1,0)),CONCATENATE(\"Dag \",KalenderDag-DATE(YEAR(KalenderDag),1,0)))","v":"Dag 60"},{"$f":"IF(WEEKDAY(KalenderDag)=Ukestartverdi,CONCATENATE(\"Uke \",WEEKNUM(KalenderDag),\"/Dag \",KalenderDag-DATE(YEAR(KalenderDag),1,0)),CONCATENATE(\"Dag \",KalenderDag-DATE(YEAR(KalenderDag),1,0)))","v":"Dag 61"},{"$f":"IF(WEEKDAY(KalenderDag)=Ukestartverdi,CONCATENATE(\"Uke \",WEEKNUM(KalenderDag),\"/Dag \",KalenderDag-DATE(YEAR(KalenderDag),1,0)),CONCATENATE(\"Dag \",KalenderDag-DATE(YEAR(KalenderDag),1,0)))","v":"Dag 62"}]
[{"$nulls":4},"NOTATER"]
[]
[null,null,{"$f":"DagerOgUker+DATE(Kalenderår,2,1)-WEEKDAY(DATE(Kalenderår,2,1),(Ukestart=\"MAN\")+1)+36","v":"2018-03-04"},"2018-03-05"]
[null,null,{"$f":"IF(WEEKDAY(KalenderDag)=Ukestartverdi,CONCATENATE(\"Uke \",WEEKNUM(KalenderDag),\"/Dag \",KalenderDag-DATE(YEAR(KalenderDag),1,0)),CONCATENATE(\"Dag \",KalenderDag-DATE(YEAR(KalenderDag),1,0)))","v":"Uke 10/Dag 63"},{"$f":"IF(WEEKDAY(KalenderDag)=Ukestartverdi,CONCATENATE(\"Uke \",WEEKNUM(KalenderDag),\"/Dag \",KalenderDag-DATE(YEAR(KalenderDag),1,0)),CONCATENATE(\"Dag \",KalenderDag-DATE(YEAR(KalenderDag),1,0)))","v":"Dag 64"}]

{"sheet":"MAR","index":2,"n_rows":20,"n_cols":9,"rows_kept":20,"merged":[[16,2,17,2],[17,4,19,8]]}
[null,"MAR",{"$f":"UPPER(TEXT(Ukestart,\"ddd\"))","v":"SØN"},{"$f":"UPPER(TEXT(D3,\"aaa\"))","v":"MAN"},"TIR","ONS","TOR","FRE","LØR"]
[null,{"$f":"Kalenderår","v":2018}]
[null,null,{"$f":"DagerOgUker+DATE(Kalenderår,3,1)-WEEKDAY(DATE(Kalenderår,3,1),(Ukestart=\"MAN\")+1)+1","v":"2018-02-25"},"2018-02-26","2018-02-27","2018-02-28","2018-03-01","2018-03-02","2018-03-03"]
[null,null,{"$f":"IF(DAY(KalenderDag)=1,CONCATENATE(\"Uke \",WEEKNUM(KalenderDag),\"/Dag \",KalenderDag-DATE(YEAR(KalenderDag),1,0)),CONCATENATE(\"Dag \",KalenderDag-DATE(YEAR(KalenderDag),1,0)))","v":"Dag 56"},{"$f":"IF(DAY(KalenderDag)=1,CONCATENATE(\"Uke \",WEEKNUM(KalenderDag),\"/Dag \",KalenderDag-DATE(YEAR(KalenderDag),1,0)),CONCATENATE(\"Dag \",KalenderDag-DATE(YEAR(KalenderDag),1,0)))","v":"Dag 57"},{"$f":"IF(DAY(KalenderDag)=1,CONCATENATE(\"Uke \",WEEKNUM(KalenderDag),\"/Dag \",KalenderDag-DATE(YEAR(KalenderDag),1,0)),CONCATENATE(\"Dag \",KalenderDag-DATE(YEAR(KalenderDag),1,0)))","v":"Dag 58"},{"$f":"IF(DAY(KalenderDag)=1,CONCATENATE(\"Uke \",WEEKNUM(KalenderDag),\"/Dag \",KalenderDag-DATE(YEAR(KalenderDag),1,0)),CONCATENATE(\"Dag \",KalenderDag-DATE(YEAR(KalenderDag),1,0)))","v":"Dag 59"},{"$f":"IF(DAY(KalenderDag)=1,CONCATENATE(\"Uke \",WEEKNUM(KalenderDag),\"/Dag \",KalenderDag-DATE(YEAR(KalenderDag),1,0)),CONCATENATE(\"Dag \",KalenderDag-DATE(YEAR(KalenderDag),1,0)))","v":"Uke 9/Dag 60"},{"$f":"IF(DAY(KalenderDag)=1,CONCATENATE(\"Uke \",WEEKNUM(KalenderDag),\"/Dag \",KalenderDag-DATE(YEAR(KalenderDag),1,0)),CONCATENATE(\"Dag \",KalenderDag-DATE(YEAR(KalenderDag),1,0)))","v":"Dag 61"},{"$f":"IF(DAY(KalenderDag)=1,CONCATENATE(\"Uke \",WEEKNUM(KalenderDag),\"/Dag \",KalenderDag-DATE(YEAR(KalenderDag),1,0)),CONCATENATE(\"Dag \",KalenderDag-DATE(YEAR(KalenderDag),1,0)))","v":"Dag 62"}]
[]
[null,null,{"$f":"DagerOgUker+DATE(Kalenderår,3,1)-WEEKDAY(DATE(Kalenderår,3,1),(Ukestart=\"MAN\")+1)+8","v":"2018-03-04"},"2018-03-05","2018-03-06","2018-03-07","2018-03-08","2018-03-09","2018-03-10"]
[null,null,{"$f":"IF(WEEKDAY(KalenderDag)=Ukestartverdi,CONCATENATE(\"Uke \",WEEKNUM(KalenderDag),\"/Dag \",KalenderDag-DATE(YEAR(KalenderDag),1,0)),CONCATENATE(\"Dag \",KalenderDag-DATE(YEAR(KalenderDag),1,0)))","v":"Uke 10/Dag 63"},{"$f":"IF(WEEKDAY(KalenderDag)=Ukestartverdi,CONCATENATE(\"Uke \",WEEKNUM(KalenderDag),\"/Dag \",KalenderDag-DATE(YEAR(KalenderDag),1,0)),CONCATENATE(\"Dag \",KalenderDag-DATE(YEAR(KalenderDag),1,0)))","v":"Dag 64"},{"$f":"IF(WEEKDAY(KalenderDag)=Ukestartverdi,CONCATENATE(\"Uke \",WEEKNUM(KalenderDag),\"/Dag \",KalenderDag-DATE(YEAR(KalenderDag),1,0)),CONCATENATE(\"Dag \",KalenderDag-DATE(YEAR(KalenderDag),1,0)))","v":"Dag 65"},{"$f":"IF(WEEKDAY(KalenderDag)=Ukestartverdi,CONCATENATE(\"Uke \",WEEKNUM(KalenderDag),\"/Dag \",KalenderDag-DATE(YEAR(KalenderDag),1,0)),CONCATENATE(\"Dag \",KalenderDag-DATE(YEAR(KalenderDag),1,0)))","v":"Dag 66"},{"$f":"IF(WEEKDAY(KalenderDag)=Ukestartverdi,CONCATENATE(\"Uke \",WEEKNUM(KalenderDag),\"/Dag \",KalenderDag-DATE(YEAR(KalenderDag),1,0)),CONCATENATE(\"Dag \",KalenderDag-DATE(YEAR(KalenderDag),1,0)))","v":"Dag 67"},{"$f":"IF(WEEKDAY(KalenderDag)=Ukestartverdi,CONCATENATE(\"Uke \",WEEKNUM(KalenderDag),\"/Dag \",KalenderDag-DATE(YEAR(KalenderDag),1,0)),CONCATENATE(\"Dag \",KalenderDag-DATE(YEAR(KalenderDag),1,0)))","v":"Dag 68"},{"$f":"IF(WEEKDAY(KalenderDag)=Ukestartverdi,CONCATENATE(\"Uke \",WEEKNUM(KalenderDag),\"/Dag \",KalenderDag-DATE(YEAR(KalenderDag),1,0)),CONCATENATE(\"Dag \",KalenderDag-DATE(YEAR(KalenderDag),1,0)))","v":"Dag 69"}]
[]
[null,null,{"$f":"DagerOgUker+DATE(Kalenderår,3,1)-WEEKDAY(DATE(Kalenderår,3,1),(Ukestart=\"MAN\")+1)+15","v":"2018-03-11"},"2018-03-12","2018-03-13","2018-03-14","2018-03-15","2018-03-16","2018-03-17"]
[null,null,{"$f":"IF(WEEKDAY(KalenderDag)=Ukestartverdi,CONCATENATE(\"Uke \",WEEKNUM(KalenderDag),\"/Dag \",KalenderDag-DATE(YEAR(KalenderDag),1,0)),CONCATENATE(\"Dag \",KalenderDag-DATE(YEAR(KalenderDag),1,0)))","v":"Uke 11/Dag 70"},{"$f":"IF(WEEKDAY(KalenderDag)=Ukestartverdi,CONCATENATE(\"Uke \",WEEKNUM(KalenderDag),\"/Dag \",KalenderDag-DATE(YEAR(KalenderDag),1,0)),CONCATENATE(\"Dag \",KalenderDag-DATE(YEAR(KalenderDag),1,0)))","v":"Dag 71"},{"$f":"IF(WEEKDAY(KalenderDag)=Ukestartverdi,CONCATENATE(\"Uke \",WEEKNUM(KalenderDag),\"/Dag \",KalenderDag-DATE(YEAR(KalenderDag),1,0)),CONCATENATE(\"Dag \",KalenderDag-DATE(YEAR(KalenderDag),1,0)))","v":"Dag 72"},{"$f":"IF(WEEKDAY(KalenderDag)=Ukestartverdi,CONCATENATE(\"Uke \",WEEKNUM(KalenderDag),\"/Dag \",KalenderDag-DATE(YEAR(KalenderDag),1,0)),CONCATENATE(\"Dag \",KalenderDag-DATE(YEAR(KalenderDag),1,0)))","v":"Dag 73"},{"$f":"IF(WEEKDAY(KalenderDag)=Ukestartverdi,CONCATENATE(\"Uke \",WEEKNUM(KalenderDag),\"/Dag \",KalenderDag-DATE(YEAR(KalenderDag),1,0)),CONCATENATE(\"Dag \",KalenderDag-DATE(YEAR(KalenderDag),1,0)))","v":"Dag 74"},{"$f":"IF(WEEKDAY(KalenderDag)=Ukestartverdi,CONCATENATE(\"Uke \",WEEKNUM(KalenderDag),\"/Dag \",KalenderDag-DATE(YEAR(KalenderDag),1,0)),CONCATENATE(\"Dag \",KalenderDag-DATE(YEAR(KalenderDag),1,0)))","v":"Dag 75"},{"$f":"IF(WEEKDAY(KalenderDag)=Ukestartverdi,CONCATENATE(\"Uke \",WEEKNUM(KalenderDag),\"/Dag \",KalenderDag-DATE(YEAR(KalenderDag),1,0)),CONCATENATE(\"Dag \",KalenderDag-DATE(YEAR(KalenderDag),1,0)))","v":"Dag 76"}]
[]
[null,null,{"$f":"DagerOgUker+DATE(Kalenderår,3,1)-WEEKDAY(DATE(Kalenderår,3,1),(Ukestart=\"MAN\")+1)+22","v":"2018-03-18"},"2018-03-19","2018-03-20","2018-03-21","2018-03-22","2018-03-23","2018-03-24"]
[null,null,{"$f":"IF(WEEKDAY(KalenderDag)=Ukestartverdi,CONCATENATE(\"Uke \",WEEKNUM(KalenderDag),\"/Dag \",KalenderDag-DATE(YEAR(KalenderDag),1,0)),CONCATENATE(\"Dag \",KalenderDag-DATE(YEAR(KalenderDag),1,0)))","v":"Uke 12/Dag 77"},{"$f":"IF(WEEKDAY(KalenderDag)=Ukestartverdi,CONCATENATE(\"Uke \",WEEKNUM(KalenderDag),\"/Dag \",KalenderDag-DATE(YEAR(KalenderDag),1,0)),CONCATENATE(\"Dag \",KalenderDag-DATE(YEAR(KalenderDag),1,0)))","v":"Dag 78"},{"$f":"IF(WEEKDAY(KalenderDag)=Ukestartverdi,CONCATENATE(\"Uke \",WEEKNUM(KalenderDag),\"/Dag \",KalenderDag-DATE(YEAR(KalenderDag),1,0)),CONCATENATE(\"Dag \",KalenderDag-DATE(YEAR(KalenderDag),1,0)))","v":"Dag 79"},{"$f":"IF(WEEKDAY(KalenderDag)=Ukestartverdi,CONCATENATE(\"Uke \",WEEKNUM(KalenderDag),\"/Dag \",KalenderDag-DATE(YEAR(KalenderDag),1,0)),CONCATENATE(\"Dag \",KalenderDag-DATE(YEAR(KalenderDag),1,0)))","v":"Dag 80"},{"$f":"IF(WEEKDAY(KalenderDag)=Ukestartverdi,CONCATENATE(\"Uke \",WEEKNUM(KalenderDag),\"/Dag \",KalenderDag-DATE(YEAR(KalenderDag),1,0)),CONCATENATE(\"Dag \",KalenderDag-DATE(YEAR(KalenderDag),1,0)))","v":"Dag 81"},{"$f":"IF(WEEKDAY(KalenderDag)=Ukestartverdi,CONCATENATE(\"Uke \",WEEKNUM(KalenderDag),\"/Dag \",KalenderDag-DATE(YEAR(KalenderDag),1,0)),CONCATENATE(\"Dag \",KalenderDag-DATE(YEAR(KalenderDag),1,0)))","v":"Dag 82"},{"$f":"IF(WEEKDAY(KalenderDag)=Ukestartverdi,CONCATENATE(\"Uke \",WEEKNUM(KalenderDag),\"/Dag \",KalenderDag-DATE(YEAR(KalenderDag),1,0)),CONCATENATE(\"Dag \",KalenderDag-DATE(YEAR(KalenderDag),1,0)))","v":"Dag 83"}]
[]
[null,null,{"$f":"DagerOgUker+DATE(Kalenderår,3,1)-WEEKDAY(DATE(Kalenderår,3,1),(Ukestart=\"MAN\")+1)+29","v":"2018-03-25"},"2018-03-26","2018-03-27","2018-03-28","2018-03-29","2018-03-30","2018-03-31"]
[null,null,{"$f":"IF(WEEKDAY(KalenderDag)=Ukestartverdi,CONCATENATE(\"Uke \",WEEKNUM(KalenderDag),\"/Dag \",KalenderDag-DATE(YEAR(KalenderDag),1,0)),CONCATENATE(\"Dag \",KalenderDag-DATE(YEAR(KalenderDag),1,0)))","v":"Uke 13/Dag 84"},{"$f":"IF(WEEKDAY(KalenderDag)=Ukestartverdi,CONCATENATE(\"Uke \",WEEKNUM(KalenderDag),\"/Dag \",KalenderDag-DATE(YEAR(KalenderDag),1,0)),CONCATENATE(\"Dag \",KalenderDag-DATE(YEAR(KalenderDag),1,0)))","v":"Dag 85"},{"$f":"IF(WEEKDAY(KalenderDag)=Ukestartverdi,CONCATENATE(\"Uke \",WEEKNUM(KalenderDag),\"/Dag \",KalenderDag-DATE(YEAR(KalenderDag),1,0)),CONCATENATE(\"Dag \",KalenderDag-DATE(YEAR(KalenderDag),1,0)))","v":"Dag 86"},{"$f":"IF(WEEKDAY(KalenderDag)=Ukestartverdi,CONCATENATE(\"Uke \",WEEKNUM(KalenderDag),\"/Dag \",KalenderDag-DATE(YEAR(KalenderDag),1,0)),CONCATENATE(\"Dag \",KalenderDag-DATE(YEAR(KalenderDag),1,0)))","v":"Dag 87"},{"$f":"IF(WEEKDAY(KalenderDag)=Ukestartverdi,CONCATENATE(\"Uke \",WEEKNUM(KalenderDag),\"/Dag \",KalenderDag-DATE(YEAR(KalenderDag),1,0)),CONCATENATE(\"Dag \",KalenderDag-DATE(YEAR(KalenderDag),1,0)))","v":"Dag 88"},{"$f":"IF(WEEKDAY(KalenderDag)=Ukestartverdi,CONCATENATE(\"Uke \",WEEKNUM(KalenderDag),\"/Dag \",KalenderDag-DATE(YEAR(KalenderDag),1,0)),CONCATENATE(\"Dag \",KalenderDag-DATE(YEAR(KalenderDag),1,0)))","v":"Dag 89"},{"$f":"IF(WEEKDAY(KalenderDag)=Ukestartverdi,CONCATENATE(\"Uke \",WEEKNUM(KalenderDag),\"/Dag \",KalenderDag-DATE(YEAR(KalenderDag),1,0)),CONCATENATE(\"Dag \",KalenderDag-DATE(YEAR(KalenderDag),1,0)))","v":"Dag 90"}]
[{"$nulls":4},"NOTATER"]
[]
[null,null,{"$f":"DagerOgUker+DATE(Kalenderår,3,1)-WEEKDAY(DATE(Kalenderår,3,1),(Ukestart=\"MAN\")+1)+36","v":"2018-04-01"},"2018-04-02"]
[null,null,{"$f":"IF(WEEKDAY(KalenderDag)=Ukestartverdi,CONCATENATE(\"Uke \",WEEKNUM(KalenderDag),\"/Dag \",KalenderDag-DATE(YEAR(KalenderDag),1,0)),CONCATENATE(\"Dag \",KalenderDag-DATE(YEAR(KalenderDag),1,0)))","v":"Uke 14/Dag 91"},{"$f":"IF(WEEKDAY(KalenderDag)=Ukestartverdi,CONCATENATE(\"Uke \",WEEKNUM(KalenderDag),\"/Dag \",KalenderDag-DATE(YEAR(KalenderDag),1,0)),CONCATENATE(\"Dag \",KalenderDag-DATE(YEAR(KalenderDag),1,0)))","v":"Dag 92"}]

{"sheet":"APR","index":3,"n_rows":20,"n_cols":9,"rows_kept":20,"merged":[[16,2,17,2],[17,4,19,8]]}
[null,"APR",{"$f":"UPPER(TEXT(Ukestart,\"ddd\"))","v":"SØN"},{"$f":"UPPER(TEXT(D3,\"aaa\"))","v":"MAN"},"TIR","ONS","TOR","FRE","LØR"]
[null,{"$f":"Kalenderår","v":2018}]
[null,null,{"$f":"DagerOgUker+DATE(Kalenderår,4,1)-WEEKDAY(DATE(Kalenderår,4,1),(Ukestart=\"MAN\")+1)+1","v":"2018-04-01"},"2018-04-02","2018-04-03","2018-04-04","2018-04-05","2018-04-06","2018-04-07"]
[null,null,{"$f":"IF(DAY(KalenderDag)=1,CONCATENATE(\"Uke \",WEEKNUM(KalenderDag),\"/Dag \",KalenderDag-DATE(YEAR(KalenderDag),1,0)),CONCATENATE(\"Dag \",KalenderDag-DATE(YEAR(KalenderDag),1,0)))","v":"Uke 14/Dag 91"},{"$f":"IF(DAY(KalenderDag)=1,CONCATENATE(\"Uke \",WEEKNUM(KalenderDag),\"/Dag \",KalenderDag-DATE(YEAR(KalenderDag),1,0)),CONCATENATE(\"Dag \",KalenderDag-DATE(YEAR(KalenderDag),1,0)))","v":"Dag 92"},{"$f":"IF(DAY(KalenderDag)=1,CONCATENATE(\"Uke \",WEEKNUM(KalenderDag),\"/Dag \",KalenderDag-DATE(YEAR(KalenderDag),1,0)),CONCATENATE(\"Dag \",KalenderDag-DATE(YEAR(KalenderDag),1,0)))","v":"Dag 93"},{"$f":"IF(DAY(KalenderDag)=1,CONCATENATE(\"Uke \",WEEKNUM(KalenderDag),\"/Dag \",KalenderDag-DATE(YEAR(KalenderDag),1,0)),CONCATENATE(\"Dag \",KalenderDag-DATE(YEAR(KalenderDag),1,0)))","v":"Dag 94"},{"$f":"IF(DAY(KalenderDag)=1,CONCATENATE(\"Uke \",WEEKNUM(KalenderDag),\"/Dag \",KalenderDag-DATE(YEAR(KalenderDag),1,0)),CONCATENATE(\"Dag \",KalenderDag-DATE(YEAR(KalenderDag),1,0)))","v":"Dag 95"},{"$f":"IF(DAY(KalenderDag)=1,CONCATENATE(\"Uke \",WEEKNUM(KalenderDag),\"/Dag \",KalenderDag-DATE(YEAR(KalenderDag),1,0)),CONCATENATE(\"Dag \",KalenderDag-DATE(YEAR(KalenderDag),1,0)))","v":"Dag 96"},{"$f":"IF(DAY(KalenderDag)=1,CONCATENATE(\"Uke \",WEEKNUM(KalenderDag),\"/Dag \",KalenderDag-DATE(YEAR(KalenderDag),1,0)),CONCATENATE(\"Dag \",KalenderDag-DATE(YEAR(KalenderDag),1,0)))","v":"Dag 97"}]
[]
[null,null,{"$f":"DagerOgUker+DATE(Kalenderår,4,1)-WEEKDAY(DATE(Kalenderår,4,1),(Ukestart=\"MAN\")+1)+8","v":"2018-04-08"},"2018-04-09","2018-04-10","2018-04-11","2018-04-12","2018-04-13","2018-04-14"]
[null,null,{"$f":"IF(WEEKDAY(KalenderDag)=Ukestartverdi,CONCATENATE(\"Uke \",WEEKNUM(KalenderDag),\"/Dag \",KalenderDag-DATE(YEAR(KalenderDag),1,0)),CONCATENATE(\"Dag \",KalenderDag-DATE(YEAR(KalenderDag),1,0)))","v":"Uke 15/Dag 98"},{"$f":"IF(WEEKDAY(KalenderDag)=Ukestartverdi,CONCATENATE(\"Uke \",WEEKNUM(KalenderDag),\"/Dag \",KalenderDag-DATE(YEAR(KalenderDag),1,0)),CONCATENATE(\"Dag \",KalenderDag-DATE(YEAR(KalenderDag),1,0)))","v":"Dag 99"},{"$f":"IF(WEEKDAY(KalenderDag)=Ukestartverdi,CONCATENATE(\"Uke \",WEEKNUM(KalenderDag),\"/Dag \",KalenderDag-DATE(YEAR(KalenderDag),1,0)),CONCATENATE(\"Dag \",KalenderDag-DATE(YEAR(KalenderDag),1,0)))","v":"Dag 100"},{"$f":"IF(WEEKDAY(KalenderDag)=Ukestartverdi,CONCATENATE(\"Uke \",WEEKNUM(KalenderDag),\"/Dag \",KalenderDag-DATE(YEAR(KalenderDag),1,0)),CONCATENATE(\"Dag \",KalenderDag-DATE(YEAR(KalenderDag),1,0)))","v":"Dag 101"},{"$f":"IF(WEEKDAY(KalenderDag)=Ukestartverdi,CONCATENATE(\"Uke \",WEEKNUM(KalenderDag),\"/Dag \",KalenderDag-DATE(YEAR(KalenderDag),1,0)),CONCATENATE(\"Dag \",KalenderDag-DATE(YEAR(KalenderDag),1,0)))","v":"Dag 102"},{"$f":"IF(WEEKDAY(KalenderDag)=Ukestartverdi,CONCATENATE(\"Uke \",WEEKNUM(KalenderDag),\"/Dag \",KalenderDag-DATE(YEAR(KalenderDag),1,0)),CONCATENATE(\"Dag \",KalenderDag-DATE(YEAR(KalenderDag),1,0)))","v":"Dag 103"},{"$f":"IF(WEEKDAY(KalenderDag)=Ukestartverdi,CONCATENATE(\"Uke \",WEEKNUM(KalenderDag),\"/Dag \",KalenderDag-DATE(YEAR(KalenderDag),1,0)),CONCATENATE(\"Dag \",KalenderDag-DATE(YEAR(KalenderDag),1,0)))","v":"Dag 104"}]
[]
[null,null,{"$f":"DagerOgUker+DATE(Kalenderår,4,1)-WEEKDAY(DATE(Kalenderår,4,1),(Ukestart=\"MAN\")+1)+15","v":"2018-04-15"},"2018-04-16","2018-04-17","2018-04-18","2018-04-19","2018-04-20","2018-04-21"]
[null,null,{"$f":"IF(WEEKDAY(KalenderDag)=Ukestartverdi,CONCATENATE(\"Uke \",WEEKNUM(KalenderDag),\"/Dag \",KalenderDag-DATE(YEAR(KalenderDag),1,0)),CONCATENATE(\"Dag \",KalenderDag-DATE(YEAR(KalenderDag),1,0)))","v":"Uke 16/Dag 105"},{"$f":"IF(WEEKDAY(KalenderDag)=Ukestartverdi,CONCATENATE(\"Uke \",WEEKNUM(KalenderDag),\"/Dag \",KalenderDag-DATE(YEAR(KalenderDag),1,0)),CONCATENATE(\"Dag \",KalenderDag-DATE(YEAR(KalenderDag),1,0)))","v":"Dag 106"},{"$f":"IF(WEEKDAY(KalenderDag)=Ukestartverdi,CONCATENATE(\"Uke \",WEEKNUM(KalenderDag),\"/Dag \",KalenderDag-DATE(YEAR(KalenderDag),1,0)),CONCATENATE(\"Dag \",KalenderDag-DATE(YEAR(KalenderDag),1,0)))","v":"Dag 107"},{"$f":"IF(WEEKDAY(KalenderDag)=Ukestartverdi,CONCATENATE(\"Uke \",WEEKNUM(KalenderDag),\"/Dag \",KalenderDag-DATE(YEAR(KalenderDag),1,0)),CONCATENATE(\"Dag \",KalenderDag-DATE(YEAR(KalenderDag),1,0)))","v":"Dag 108"},{"$f":"IF(WEEKDAY(KalenderDag)=Ukestartverdi,CONCATENATE(\"Uke \",WEEKNUM(KalenderDag),\"/Dag \",KalenderDag-DATE(YEAR(KalenderDag),1,0)),CONCATENATE(\"Dag \",KalenderDag-DATE(YEAR(KalenderDag),1,0)))","v":"Dag 109"},{"$f":"IF(WEEKDAY(KalenderDag)=Ukestartverdi,CONCATENATE(\"Uke \",WEEKNUM(KalenderDag),\"/Dag \",KalenderDag-DATE(YEAR(KalenderDag),1,0)),CONCATENATE(\"Dag \",KalenderDag-DATE(YEAR(KalenderDag),1,0)))","v":"Dag 110"},{"$f":"IF(WEEKDAY(KalenderDag)=Ukestartverdi,CONCATENATE(\"Uke \",WEEKNUM(KalenderDag),\"/Dag \",KalenderDag-DATE(YEAR(KalenderDag),1,0)),CONCATENATE(\"Dag \",KalenderDag-DATE(YEAR(KalenderDag),1,0)))","v":"Dag 111"}]
[]
[null,null,{"$f":"DagerOgUker+DATE(Kalenderår,4,1)-WEEKDAY(DATE(Kalenderår,4,1),(Ukestart=\"MAN\")+1)+22","v":"2018-04-22"},"2018-04-23","2018-04-24","2018-04-25","2018-04-26","2018-04-27","2018-04-28"]
[null,null,{"$f":"IF(WEEKDAY(KalenderDag)=Ukestartverdi,CONCATENATE(\"Uke \",WEEKNUM(KalenderDag),\"/Dag \",KalenderDag-DATE(YEAR(KalenderDag),1,0)),CONCATENATE(\"Dag \",KalenderDag-DATE(YEAR(KalenderDag),1,0)))","v":"Uke 17/Dag 112"},{"$f":"IF(WEEKDAY(KalenderDag)=Ukestartverdi,CONCATENATE(\"Uke \",WEEKNUM(KalenderDag),\"/Dag \",KalenderDag-DATE(YEAR(KalenderDag),1,0)),CONCATENATE(\"Dag \",KalenderDag-DATE(YEAR(KalenderDag),1,0)))","v":"Dag 113"},{"$f":"IF(WEEKDAY(KalenderDag)=Ukestartverdi,CONCATENATE(\"Uke \",WEEKNUM(KalenderDag),\"/Dag \",KalenderDag-DATE(YEAR(KalenderDag),1,0)),CONCATENATE(\"Dag \",KalenderDag-DATE(YEAR(KalenderDag),1,0)))","v":"Dag 114"},{"$f":"IF(WEEKDAY(KalenderDag)=Ukestartverdi,CONCATENATE(\"Uke \",WEEKNUM(KalenderDag),\"/Dag \",KalenderDag-DATE(YEAR(KalenderDag),1,0)),CONCATENATE(\"Dag \",KalenderDag-DATE(YEAR(KalenderDag),1,0)))","v":"Dag 115"},{"$f":"IF(WEEKDAY(KalenderDag)=Ukestartverdi,CONCATENATE(\"Uke \",WEEKNUM(KalenderDag),\"/Dag \",KalenderDag-DATE(YEAR(KalenderDag),1,0)),CONCATENATE(\"Dag \",KalenderDag-DATE(YEAR(KalenderDag),1,0)))","v":"Dag 116"},{"$f":"IF(WEEKDAY(KalenderDag)=Ukestartverdi,CONCATENATE(\"Uke \",WEEKNUM(KalenderDag),\"/Dag \",KalenderDag-DATE(YEAR(KalenderDag),1,0)),CONCATENATE(\"Dag \",KalenderDag-DATE(YEAR(KalenderDag),1,0)))","v":"Dag 117"},{"$f":"IF(WEEKDAY(KalenderDag)=Ukestartverdi,CONCATENATE(\"Uke \",WEEKNUM(KalenderDag),\"/Dag \",KalenderDag-DATE(YEAR(KalenderDag),1,0)),CONCATENATE(\"Dag \",KalenderDag-DATE(YEAR(KalenderDag),1,0)))","v":"Dag 118"}]
[]
[null,null,{"$f":"DagerOgUker+DATE(Kalenderår,4,1)-WEEKDAY(DATE(Kalenderår,4,1),(Ukestart=\"MAN\")+1)+29","v":"2018-04-29"},"2018-04-30","2018-05-01","2018-05-02","2018-05-03","2018-05-04","2018-05-05"]
[null,null,{"$f":"IF(WEEKDAY(KalenderDag)=Ukestartverdi,CONCATENATE(\"Uke \",WEEKNUM(KalenderDag),\"/Dag \",KalenderDag-DATE(YEAR(KalenderDag),1,0)),CONCATENATE(\"Dag \",KalenderDag-DATE(YEAR(KalenderDag),1,0)))","v":"Uke 18/Dag 119"},{"$f":"IF(WEEKDAY(KalenderDag)=Ukestartverdi,CONCATENATE(\"Uke \",WEEKNUM(KalenderDag),\"/Dag \",KalenderDag-DATE(YEAR(KalenderDag),1,0)),CONCATENATE(\"Dag \",KalenderDag-DATE(YEAR(KalenderDag),1,0)))","v":"Dag 120"},{"$f":"IF(WEEKDAY(KalenderDag)=Ukestartverdi,CONCATENATE(\"Uke \",WEEKNUM(KalenderDag),\"/Dag \",KalenderDag-DATE(YEAR(KalenderDag),1,0)),CONCATENATE(\"Dag \",KalenderDag-DATE(YEAR(KalenderDag),1,0)))","v":"Dag 121"},{"$f":"IF(WEEKDAY(KalenderDag)=Ukestartverdi,CONCATENATE(\"Uke \",WEEKNUM(KalenderDag),\"/Dag \",KalenderDag-DATE(YEAR(KalenderDag),1,0)),CONCATENATE(\"Dag \",KalenderDag-DATE(YEAR(KalenderDag),1,0)))","v":"Dag 122"},{"$f":"IF(WEEKDAY(KalenderDag)=Ukestartverdi,CONCATENATE(\"Uke \",WEEKNUM(KalenderDag),\"/Dag \",KalenderDag-DATE(YEAR(KalenderDag),1,0)),CONCATENATE(\"Dag \",KalenderDag-DATE(YEAR(KalenderDag),1,0)))","v":"Dag 123"},{"$f":"IF(WEEKDAY(KalenderDag)=Ukestartverdi,CONCATENATE(\"Uke \",WEEKNUM(KalenderDag),\"/Dag \",KalenderDag-DATE(YEAR(KalenderDag),1,0)),CONCATENATE(\"Dag \",KalenderDag-DATE(YEAR(KalenderDag),1,0)))","v":"Dag 124"},{"$f":"IF(WEEKDAY(KalenderDag)=Ukestartverdi,CONCATENATE(\"Uke \",WEEKNUM(KalenderDag),\"/Dag \",KalenderDag-DATE(YEAR(KalenderDag),1,0)),CONCATENATE(\"Dag \",KalenderDag-DATE(YEAR(KalenderDag),1,0)))","v":"Dag 125"}]
[{"$nulls":4},"NOTATER"]
[]
[null,null,{"$f":"DagerOgUker+DATE(Kalenderår,4,1)-WEEKDAY(DATE(Kalenderår,4,1),(Ukestart=\"MAN\")+1)+36","v":"2018-05-06"},"2018-05-07"]
[null,null,{"$f":"IF(WEEKDAY(KalenderDag)=Ukestartverdi,CONCATENATE(\"Uke \",WEEKNUM(KalenderDag),\"/Dag \",KalenderDag-DATE(YEAR(KalenderDag),1,0)),CONCATENATE(\"Dag \",KalenderDag-DATE(YEAR(KalenderDag),1,0)))","v":"Uke 19/Dag 126"},{"$f":"IF(WEEKDAY(KalenderDag)=Ukestartverdi,CONCATENATE(\"Uke \",WEEKNUM(KalenderDag),\"/Dag \",KalenderDag-DATE(YEAR(KalenderDag),1,0)),CONCATENATE(\"Dag \",KalenderDag-DATE(YEAR(KalenderDag),1,0)))","v":"Dag 127"}]

{"sheet":"MAI","index":4,"n_rows":20,"n_cols":9,"rows_kept":20,"merged":[[16,2,17,2],[17,4,19,8]]}
[null,"MAI",{"$f":"UPPER(TEXT(Ukestart,\"ddd\"))","v":"SØN"},{"$f":"UPPER(TEXT(D3,\"aaa\"))","v":"MAN"},"TIR","ONS","TOR","FRE","LØR"]
[null,{"$f":"Kalenderår","v":2018}]
[null,null,{"$f":"DagerOgUker+DATE(Kalenderår,5,1)-WEEKDAY(DATE(Kalenderår,5,1),(Ukestart=\"MAN\")+1)+1","v":"2018-04-29"},"2018-04-30","2018-05-01","2018-05-02","2018-05-03","2018-05-04","2018-05-05"]
[null,null,{"$f":"IF(DAY(KalenderDag)=1,CONCATENATE(\"Uke \",WEEKNUM(KalenderDag),\"/Dag \",KalenderDag-DATE(YEAR(KalenderDag),1,0)),CONCATENATE(\"Dag \",KalenderDag-DATE(YEAR(KalenderDag),1,0)))","v":"Dag 119"},{"$f":"IF(DAY(KalenderDag)=1,CONCATENATE(\"Uke \",WEEKNUM(KalenderDag),\"/Dag \",KalenderDag-DATE(YEAR(KalenderDag),1,0)),CONCATENATE(\"Dag \",KalenderDag-DATE(YEAR(KalenderDag),1,0)))","v":"Dag 120"},{"$f":"IF(DAY(KalenderDag)=1,CONCATENATE(\"Uke \",WEEKNUM(KalenderDag),\"/Dag \",KalenderDag-DATE(YEAR(KalenderDag),1,0)),CONCATENATE(\"Dag \",KalenderDag-DATE(YEAR(KalenderDag),1,0)))","v":"Uke 18/Dag 121"},{"$f":"IF(DAY(KalenderDag)=1,CONCATENATE(\"Uke \",WEEKNUM(KalenderDag),\"/Dag \",KalenderDag-DATE(YEAR(KalenderDag),1,0)),CONCATENATE(\"Dag \",KalenderDag-DATE(YEAR(KalenderDag),1,0)))","v":"Dag 122"},{"$f":"IF(DAY(KalenderDag)=1,CONCATENATE(\"Uke \",WEEKNUM(KalenderDag),\"/Dag \",KalenderDag-DATE(YEAR(KalenderDag),1,0)),CONCATENATE(\"Dag \",KalenderDag-DATE(YEAR(KalenderDag),1,0)))","v":"Dag 123"},{"$f":"IF(DAY(KalenderDag)=1,CONCATENATE(\"Uke \",WEEKNUM(KalenderDag),\"/Dag \",KalenderDag-DATE(YEAR(KalenderDag),1,0)),CONCATENATE(\"Dag \",KalenderDag-DATE(YEAR(KalenderDag),1,0)))","v":"Dag 124"},{"$f":"IF(DAY(KalenderDag)=1,CONCATENATE(\"Uke \",WEEKNUM(KalenderDag),\"/Dag \",KalenderDag-DATE(YEAR(KalenderDag),1,0)),CONCATENATE(\"Dag \",KalenderDag-DATE(YEAR(KalenderDag),1,0)))","v":"Dag 125"}]
[]
[null,null,{"$f":"DagerOgUker+DATE(Kalenderår,5,1)-WEEKDAY(DATE(Kalenderår,5,1),(Ukestart=\"MAN\")+1)+8","v":"2018-05-06"},"2018-05-07","2018-05-08","2018-05-09","2018-05-10","2018-05-11","2018-05-12"]
[null,null,{"$f":"IF(WEEKDAY(KalenderDag)=Ukestartverdi,CONCATENATE(\"Uke \",WEEKNUM(KalenderDag),\"/Dag \",KalenderDag-DATE(YEAR(KalenderDag),1,0)),CONCATENATE(\"Dag \",KalenderDag-DATE(YEAR(KalenderDag),1,0)))","v":"Uke 19/Dag 126"},{"$f":"IF(WEEKDAY(KalenderDag)=Ukestartverdi,CONCATENATE(\"Uke \",WEEKNUM(KalenderDag),\"/Dag \",KalenderDag-DATE(YEAR(KalenderDag),1,0)),CONCATENATE(\"Dag \",KalenderDag-DATE(YEAR(KalenderDag),1,0)))","v":"Dag 127"},{"$f":"IF(WEEKDAY(KalenderDag)=Ukestartverdi,CONCATENATE(\"Uke \",WEEKNUM(KalenderDag),\"/Dag \",KalenderDag-DATE(YEAR(KalenderDag),1,0)),CONCATENATE(\"Dag \",KalenderDag-DATE(YEAR(KalenderDag),1,0)))","v":"Dag 128"},{"$f":"IF(WEEKDAY(KalenderDag)=Ukestartverdi,CONCATENATE(\"Uke \",WEEKNUM(KalenderDag),\"/Dag \",KalenderDag-DATE(YEAR(KalenderDag),1,0)),CONCATENATE(\"Dag \",KalenderDag-DATE(YEAR(KalenderDag),1,0)))","v":"Dag 129"},{"$f":"IF(WEEKDAY(KalenderDag)=Ukestartverdi,CONCATENATE(\"Uke \",WEEKNUM(KalenderDag),\"/Dag \",KalenderDag-DATE(YEAR(KalenderDag),1,0)),CONCATENATE(\"Dag \",KalenderDag-DATE(YEAR(KalenderDag),1,0)))","v":"Dag 130"},{"$f":"IF(WEEKDAY(KalenderDag)=Ukestartverdi,CONCATENATE(\"Uke \",WEEKNUM(KalenderDag),\"/Dag \",KalenderDag-DATE(YEAR(KalenderDag),1,0)),CONCATENATE(\"Dag \",KalenderDag-DATE(YEAR(KalenderDag),1,0)))","v":"Dag 131"},{"$f":"IF(WEEKDAY(KalenderDag)=Ukestartverdi,CONCATENATE(\"Uke \",WEEKNUM(KalenderDag),\"/Dag \",KalenderDag-DATE(YEAR(KalenderDag),1,0)),CONCATENATE(\"Dag \",KalenderDag-DATE(YEAR(KalenderDag),1,0)))","v":"Dag 132"}]
[]
[null,null,{"$f":"DagerOgUker+DATE(Kalenderår,5,1)-WEEKDAY(DATE(Kalenderår,5,1),(Ukestart=\"MAN\")+1)+15","v":"2018-05-13"},"2018-05-14","2018-05-15","2018-05-16","2018-05-17","2018-05-18","2018-05-19"]
[null,null,{"$f":"IF(WEEKDAY(KalenderDag)=Ukestartverdi,CONCATENATE(\"Uke \",WEEKNUM(KalenderDag),\"/Dag \",KalenderDag-DATE(YEAR(KalenderDag),1,0)),CONCATENATE(\"Dag \",KalenderDag-DATE(YEAR(KalenderDag),1,0)))","v":"Uke 20/Dag 133"},{"$f":"IF(WEEKDAY(KalenderDag)=Ukestartverdi,CONCATENATE(\"Uke \",WEEKNUM(KalenderDag),\"/Dag \",KalenderDag-DATE(YEAR(KalenderDag),1,0)),CONCATENATE(\"Dag \",KalenderDag-DATE(YEAR(KalenderDag),1,0)))","v":"Dag 134"},{"$f":"IF(WEEKDAY(KalenderDag)=Ukestartverdi,CONCATENATE(\"Uke \",WEEKNUM(KalenderDag),\"/Dag \",KalenderDag-DATE(YEAR(KalenderDag),1,0)),CONCATENATE(\"Dag \",KalenderDag-DATE(YEAR(KalenderDag),1,0)))","v":"Dag 135"},{"$f":"IF(WEEKDAY(KalenderDag)=Ukestartverdi,CONCATENATE(\"Uke \",WEEKNUM(KalenderDag),\"/Dag \",KalenderDag-DATE(YEAR(KalenderDag),1,0)),CONCATENATE(\"Dag \",KalenderDag-DATE(YEAR(KalenderDag),1,0)))","v":"Dag 136"},{"$f":"IF(WEEKDAY(KalenderDag)=Ukestartverdi,CONCATENATE(\"Uke \",WEEKNUM(KalenderDag),\"/Dag \",KalenderDag-DATE(YEAR(KalenderDag),1,0)),CONCATENATE(\"Dag \",KalenderDag-DATE(YEAR(KalenderDag),1,0)))","v":"Dag 137"},{"$f":"IF(WEEKDAY(KalenderDag)=Ukestartverdi,CONCATENATE(\"Uke \",WEEKNUM(KalenderDag),\"/Dag \",KalenderDag-DATE(YEAR(KalenderDag),1,0)),CONCATENATE(\"Dag \",KalenderDag-DATE(YEAR(KalenderDag),1,0)))","v":"Dag 138"},{"$f":"IF(WEEKDAY(KalenderDag)=Ukestartverdi,CONCATENATE(\"Uke \",WEEKNUM(KalenderDag),\"/Dag \",KalenderDag-DATE(YEAR(KalenderDag),1,0)),CONCATENATE(\"Dag \",KalenderDag-DATE(YEAR(KalenderDag),1,0)))","v":"Dag 139"}]
[]
[null,null,{"$f":"DagerOgUker+DATE(Kalenderår,5,1)-WEEKDAY(DATE(Kalenderår,5,1),(Ukestart=\"MAN\")+1)+22","v":"2018-05-20"},"2018-05-21","2018-05-22","2018-05-23","2018-05-24","2018-05-25","2018-05-26"]
[null,null,{"$f":"IF(WEEKDAY(KalenderDag)=Ukestartverdi,CONCATENATE(\"Uke \",WEEKNUM(KalenderDag),\"/Dag \",KalenderDag-DATE(YEAR(KalenderDag),1,0)),CONCATENATE(\"Dag \",KalenderDag-DATE(YEAR(KalenderDag),1,0)))","v":"Uke 21/Dag 140"},{"$f":"IF(WEEKDAY(KalenderDag)=Ukestartverdi,CONCATENATE(\"Uke \",WEEKNUM(KalenderDag),\"/Dag \",KalenderDag-DATE(YEAR(KalenderDag),1,0)),CONCATENATE(\"Dag \",KalenderDag-DATE(YEAR(KalenderDag),1,0)))","v":"Dag 141"},{"$f":"IF(WEEKDAY(KalenderDag)=Ukestartverdi,CONCATENATE(\"Uke \",WEEKNUM(KalenderDag),\"/Dag \",KalenderDag-DATE(YEAR(KalenderDag),1,0)),CONCATENATE(\"Dag \",KalenderDag-DATE(YEAR(KalenderDag),1,0)))","v":"Dag 142"},{"$f":"IF(WEEKDAY(KalenderDag)=Ukestartverdi,CONCATENATE(\"Uke \",WEEKNUM(KalenderDag),\"/Dag \",KalenderDag-DATE(YEAR(KalenderDag),1,0)),CONCATENATE(\"Dag \",KalenderDag-DATE(YEAR(KalenderDag),1,0)))","v":"Dag 143"},{"$f":"IF(WEEKDAY(KalenderDag)=Ukestartverdi,CONCATENATE(\"Uke \",WEEKNUM(KalenderDag),\"/Dag \",KalenderDag-DATE(YEAR(KalenderDag),1,0)),CONCATENATE(\"Dag \",KalenderDag-DATE(YEAR(KalenderDag),1,0)))","v":"Dag 144"},{"$f":"IF(WEEKDAY(KalenderDag)=Ukestartverdi,CONCATENATE(\"Uke \",WEEKNUM(KalenderDag),\"/Dag \",KalenderDag-DATE(YEAR(KalenderDag),1,0)),CONCATENATE(\"Dag \",KalenderDag-DATE(YEAR(KalenderDag),1,0)))","v":"Dag 145"},{"$f":"IF(WEEKDAY(KalenderDag)=Ukestartverdi,CONCATENATE(\"Uke \",WEEKNUM(KalenderDag),\"/Dag \",KalenderDag-DATE(YEAR(KalenderDag),1,0)),CONCATENATE(\"Dag \",KalenderDag-DATE(YEAR(KalenderDag),1,0)))","v":"Dag 146"}]
[]
[null,null,{"$f":"DagerOgUker+DATE(Kalenderår,5,1)-WEEKDAY(DATE(Kalenderår,5,1),(Ukestart=\"MAN\")+1)+29","v":"2018-05-27"},"2018-05-28","2018-05-29","2018-05-30","2018-05-31","2018-06-01","2018-06-02"]
[null,null,{"$f":"IF(WEEKDAY(KalenderDag)=Ukestartverdi,CONCATENATE(\"Uke \",WEEKNUM(KalenderDag),\"/Dag \",KalenderDag-DATE(YEAR(KalenderDag),1,0)),CONCATENATE(\"Dag \",KalenderDag-DATE(YEAR(KalenderDag),1,0)))","v":"Uke 22/Dag 147"},{"$f":"IF(WEEKDAY(KalenderDag)=Ukestartverdi,CONCATENATE(\"Uke \",WEEKNUM(KalenderDag),\"/Dag \",KalenderDag-DATE(YEAR(KalenderDag),1,0)),CONCATENATE(\"Dag \",KalenderDag-DATE(YEAR(KalenderDag),1,0)))","v":"Dag 148"},{"$f":"IF(WEEKDAY(KalenderDag)=Ukestartverdi,CONCATENATE(\"Uke \",WEEKNUM(KalenderDag),\"/Dag \",KalenderDag-DATE(YEAR(KalenderDag),1,0)),CONCATENATE(\"Dag \",KalenderDag-DATE(YEAR(KalenderDag),1,0)))","v":"Dag 149"},{"$f":"IF(WEEKDAY(KalenderDag)=Ukestartverdi,CONCATENATE(\"Uke \",WEEKNUM(KalenderDag),\"/Dag \",KalenderDag-DATE(YEAR(KalenderDag),1,0)),CONCATENATE(\"Dag \",KalenderDag-DATE(YEAR(KalenderDag),1,0)))","v":"Dag 150"},{"$f":"IF(WEEKDAY(KalenderDag)=Ukestartverdi,CONCATENATE(\"Uke \",WEEKNUM(KalenderDag),\"/Dag \",KalenderDag-DATE(YEAR(KalenderDag),1,0)),CONCATENATE(\"Dag \",KalenderDag-DATE(YEAR(KalenderDag),1,0)))","v":"Dag 151"},{"$f":"IF(WEEKDAY(KalenderDag)=Ukestartverdi,CONCATENATE(\"Uke \",WEEKNUM(KalenderDag),\"/Dag \",KalenderDag-DATE(YEAR(KalenderDag),1,0)),CONCATENATE(\"Dag \",KalenderDag-DATE(YEAR(KalenderDag),1,0)))","v":"Dag 152"},{"$f":"IF(WEEKDAY(KalenderDag)=Ukestartverdi,CONCATENATE(\"Uke \",WEEKNUM(KalenderDag),\"/Dag \",KalenderDag-DATE(YEAR(KalenderDag),1,0)),CONCATENATE(\"Dag \",KalenderDag-DATE(YEAR(KalenderDag),1,0)))","v":"Dag 153"}]
[{"$nulls":4},"NOTATER"]
[]
[null,null,{"$f":"DagerOgUker+DATE(Kalenderår,5,1)-WEEKDAY(DATE(Kalenderår,5,1),(Ukestart=\"MAN\")+1)+36","v":"2018-06-03"},"2018-06-04"]
[null,null,{"$f":"IF(WEEKDAY(KalenderDag)=Ukestartverdi,CONCATENATE(\"Uke \",WEEKNUM(KalenderDag),\"/Dag \",KalenderDag-DATE(YEAR(KalenderDag),1,0)),CONCATENATE(\"Dag \",KalenderDag-DATE(YEAR(KalenderDag),1,0)))","v":"Uke 23/Dag 154"},{"$f":"IF(WEEKDAY(KalenderDag)=Ukestartverdi,CONCATENATE(\"Uke \",WEEKNUM(KalenderDag),\"/Dag \",KalenderDag-DATE(YEAR(KalenderDag),1,0)),CONCATENATE(\"Dag \",KalenderDag-DATE(YEAR(KalenderDag),1,0)))","v":"Dag 155"}]

{"sheet":"JUN","index":5,"n_rows":20,"n_cols":9,"rows_kept":20,"merged":[[16,2,17,2],[17,4,19,8]]}
[null,"JUN",{"$f":"UPPER(TEXT(Ukestart,\"ddd\"))","v":"SØN"},{"$f":"UPPER(TEXT(D3,\"aaa\"))","v":"MAN"},"TIR","ONS","TOR","FRE","LØR"]
[null,{"$f":"Kalenderår","v":2018}]
[null,null,{"$f":"DagerOgUker+DATE(Kalenderår,6,1)-WEEKDAY(DATE(Kalenderår,6,1),(Ukestart=\"MAN\")+1)+1","v":"2018-05-27"},"2018-05-28","2018-05-29","2018-05-30","2018-05-31","2018-06-01","2018-06-02"]
[null,null,{"$f":"IF(DAY(KalenderDag)=1,CONCATENATE(\"Uke \",WEEKNUM(KalenderDag),\"/Dag \",KalenderDag-DATE(YEAR(KalenderDag),1,0)),CONCATENATE(\"Dag \",KalenderDag-DATE(YEAR(KalenderDag),1,0)))","v":"Dag 147"},{"$f":"IF(DAY(KalenderDag)=1,CONCATENATE(\"Uke \",WEEKNUM(KalenderDag),\"/Dag \",KalenderDag-DATE(YEAR(KalenderDag),1,0)),CONCATENATE(\"Dag \",KalenderDag-DATE(YEAR(KalenderDag),1,0)))","v":"Dag 148"},{"$f":"IF(DAY(KalenderDag)=1,CONCATENATE(\"Uke \",WEEKNUM(KalenderDag),\"/Dag \",KalenderDag-DATE(YEAR(KalenderDag),1,0)),CONCATENATE(\"Dag \",KalenderDag-DATE(YEAR(KalenderDag),1,0)))","v":"Dag 149"},{"$f":"IF(DAY(KalenderDag)=1,CONCATENATE(\"Uke \",WEEKNUM(KalenderDag),\"/Dag \",KalenderDag-DATE(YEAR(KalenderDag),1,0)),CONCATENATE(\"Dag \",KalenderDag-DATE(YEAR(KalenderDag),1,0)))","v":"Dag 150"},{"$f":"IF(DAY(KalenderDag)=1,CONCATENATE(\"Uke \",WEEKNUM(KalenderDag),\"/Dag \",KalenderDag-DATE(YEAR(KalenderDag),1,0)),CONCATENATE(\"Dag \",KalenderDag-DATE(YEAR(KalenderDag),1,0)))","v":"Dag 151"},{"$f":"IF(DAY(KalenderDag)=1,CONCATENATE(\"Uke \",WEEKNUM(KalenderDag),\"/Dag \",KalenderDag-DATE(YEAR(KalenderDag),1,0)),CONCATENATE(\"Dag \",KalenderDag-DATE(YEAR(KalenderDag),1,0)))","v":"Uke 22/Dag 152"},{"$f":"IF(DAY(KalenderDag)=1,CONCATENATE(\"Uke \",WEEKNUM(KalenderDag),\"/Dag \",KalenderDag-DATE(YEAR(KalenderDag),1,0)),CONCATENATE(\"Dag \",KalenderDag-DATE(YEAR(KalenderDag),1,0)))","v":"Dag 153"}]
[]
[null,null,{"$f":"DagerOgUker+DATE(Kalenderår,6,1)-WEEKDAY(DATE(Kalenderår,6,1),(Ukestart=\"MAN\")+1)+8","v":"2018-06-03"},"2018-06-04","2018-06-05","2018-06-06","2018-06-07","2018-06-08","2018-06-09"]
[null,null,{"$f":"IF(WEEKDAY(KalenderDag)=Ukestartverdi,CONCATENATE(\"Uke \",WEEKNUM(KalenderDag),\"/Dag \",KalenderDag-DATE(YEAR(KalenderDag),1,0)),CONCATENATE(\"Dag \",KalenderDag-DATE(YEAR(KalenderDag),1,0)))","v":"Uke 23/Dag 154"},{"$f":"IF(WEEKDAY(KalenderDag)=Ukestartverdi,CONCATENATE(\"Uke \",WEEKNUM(KalenderDag),\"/Dag \",KalenderDag-DATE(YEAR(KalenderDag),1,0)),CONCATENATE(\"Dag \",KalenderDag-DATE(YEAR(KalenderDag),1,0)))","v":"Dag 155"},{"$f":"IF(WEEKDAY(KalenderDag)=Ukestartverdi,CONCATENATE(\"Uke \",WEEKNUM(KalenderDag),\"/Dag \",KalenderDag-DATE(YEAR(KalenderDag),1,0)),CONCATENATE(\"Dag \",KalenderDag-DATE(YEAR(KalenderDag),1,0)))","v":"Dag 156"},{"$f":"IF(WEEKDAY(KalenderDag)=Ukestartverdi,CONCATENATE(\"Uke \",WEEKNUM(KalenderDag),\"/Dag \",KalenderDag-DATE(YEAR(KalenderDag),1,0)),CONCATENATE(\"Dag \",KalenderDag-DATE(YEAR(KalenderDag),1,0)))","v":"Dag 157"},{"$f":"IF(WEEKDAY(KalenderDag)=Ukestartverdi,CONCATENATE(\"Uke \",WEEKNUM(KalenderDag),\"/Dag \",KalenderDag-DATE(YEAR(KalenderDag),1,0)),CONCATENATE(\"Dag \",KalenderDag-DATE(YEAR(KalenderDag),1,0)))","v":"Dag 158"},{"$f":"IF(WEEKDAY(KalenderDag)=Ukestartverdi,CONCATENATE(\"Uke \",WEEKNUM(KalenderDag),\"/Dag \",KalenderDag-DATE(YEAR(KalenderDag),1,0)),CONCATENATE(\"Dag \",KalenderDag-DATE(YEAR(KalenderDag),1,0)))","v":"Dag 159"},{"$f":"IF(WEEKDAY(KalenderDag)=Ukestartverdi,CONCATENATE(\"Uke \",WEEKNUM(KalenderDag),\"/Dag \",KalenderDag-DATE(YEAR(KalenderDag),1,0)),CONCATENATE(\"Dag \",KalenderDag-DATE(YEAR(KalenderDag),1,0)))","v":"Dag 160"}]
[]
[null,null,{"$f":"DagerOgUker+DATE(Kalenderår,6,1)-WEEKDAY(DATE(Kalenderår,6,1),(Ukestart=\"MAN\")+1)+15","v":"2018-06-10"},"2018-06-11","2018-06-12","2018-06-13","2018-06-14","2018-06-15","2018-06-16"]
[null,null,{"$f":"IF(WEEKDAY(KalenderDag)=Ukestartverdi,CONCATENATE(\"Uke \",WEEKNUM(KalenderDag),\"/Dag \",KalenderDag-DATE(YEAR(KalenderDag),1,0)),CONCATENATE(\"Dag \",KalenderDag-DATE(YEAR(KalenderDag),1,0)))","v":"Uke 24/Dag 161"},{"$f":"IF(WEEKDAY(KalenderDag)=Ukestartverdi,CONCATENATE(\"Uke \",WEEKNUM(KalenderDag),\"/Dag \",KalenderDag-DATE(YEAR(KalenderDag),1,0)),CONCATENATE(\"Dag \",KalenderDag-DATE(YEAR(KalenderDag),1,0)))","v":"Dag 162"},{"$f":"IF(WEEKDAY(KalenderDag)=Ukestartverdi,CONCATENATE(\"Uke \",WEEKNUM(KalenderDag),\"/Dag \",KalenderDag-DATE(YEAR(KalenderDag),1,0)),CONCATENATE(\"Dag \",KalenderDag-DATE(YEAR(KalenderDag),1,0)))","v":"Dag 163"},{"$f":"IF(WEEKDAY(KalenderDag)=Ukestartverdi,CONCATENATE(\"Uke \",WEEKNUM(KalenderDag),\"/Dag \",KalenderDag-DATE(YEAR(KalenderDag),1,0)),CONCATENATE(\"Dag \",KalenderDag-DATE(YEAR(KalenderDag),1,0)))","v":"Dag 164"},{"$f":"IF(WEEKDAY(KalenderDag)=Ukestartverdi,CONCATENATE(\"Uke \",WEEKNUM(KalenderDag),\"/Dag \",KalenderDag-DATE(YEAR(KalenderDag),1,0)),CONCATENATE(\"Dag \",KalenderDag-DATE(YEAR(KalenderDag),1,0)))","v":"Dag 165"},{"$f":"IF(WEEKDAY(KalenderDag)=Ukestartverdi,CONCATENATE(\"Uke \",WEEKNUM(KalenderDag),\"/Dag \",KalenderDag-DATE(YEAR(KalenderDag),1,0)),CONCATENATE(\"Dag \",KalenderDag-DATE(YEAR(KalenderDag),1,0)))","v":"Dag 166"},{"$f":"IF(WEEKDAY(KalenderDag)=Ukestartverdi,CONCATENATE(\"Uke \",WEEKNUM(KalenderDag),\"/Dag \",KalenderDag-DATE(YEAR(KalenderDag),1,0)),CONCATENATE(\"Dag \",KalenderDag-DATE(YEAR(KalenderDag),1,0)))","v":"Dag 167"}]
[]
[null,null,{"$f":"DagerOgUker+DATE(Kalenderår,6,1)-WEEKDAY(DATE(Kalenderår,6,1),(Ukestart=\"MAN\")+1)+22","v":"2018-06-17"},"2018-06-18","2018-06-19","2018-06-20","2018-06-21","2018-06-22","2018-06-23"]
[null,null,{"$f":"IF(WEEKDAY(KalenderDag)=Ukestartverdi,CONCATENATE(\"Uke \",WEEKNUM(KalenderDag),\"/Dag \",KalenderDag-DATE(YEAR(KalenderDag),1,0)),CONCATENATE(\"Dag \",KalenderDag-DATE(YEAR(KalenderDag),1,0)))","v":"Uke 25/Dag 168"},{"$f":"IF(WEEKDAY(KalenderDag)=Ukestartverdi,CONCATENATE(\"Uke \",WEEKNUM(KalenderDag),\"/Dag \",KalenderDag-DATE(YEAR(KalenderDag),1,0)),CONCATENATE(\"Dag \",KalenderDag-DATE(YEAR(KalenderDag),1,0)))","v":"Dag 169"},{"$f":"IF(WEEKDAY(KalenderDag)=Ukestartverdi,CONCATENATE(\"Uke \",WEEKNUM(KalenderDag),\"/Dag \",KalenderDag-DATE(YEAR(KalenderDag),1,0)),CONCATENATE(\"Dag \",KalenderDag-DATE(YEAR(KalenderDag),1,0)))","v":"Dag 170"},{"$f":"IF(WEEKDAY(KalenderDag)=Ukestartverdi,CONCATENATE(\"Uke \",WEEKNUM(KalenderDag),\"/Dag \",KalenderDag-DATE(YEAR(KalenderDag),1,0)),CONCATENATE(\"Dag \",KalenderDag-DATE(YEAR(KalenderDag),1,0)))","v":"Dag 171"},{"$f":"IF(WEEKDAY(KalenderDag)=Ukestartverdi,CONCATENATE(\"Uke \",WEEKNUM(KalenderDag),\"/Dag \",KalenderDag-DATE(YEAR(KalenderDag),1,0)),CONCATENATE(\"Dag \",KalenderDag-DATE(YEAR(KalenderDag),1,0)))","v":"Dag 172"},{"$f":"IF(WEEKDAY(KalenderDag)=Ukestartverdi,CONCATENATE(\"Uke \",WEEKNUM(KalenderDag),\"/Dag \",KalenderDag-DATE(YEAR(KalenderDag),1,0)),CONCATENATE(\"Dag \",KalenderDag-DATE(YEAR(KalenderDag),1,0)))","v":"Dag 173"},{"$f":"IF(WEEKDAY(KalenderDag)=Ukestartverdi,CONCATENATE(\"Uke \",WEEKNUM(KalenderDag),\"/Dag \",KalenderDag-DATE(YEAR(KalenderDag),1,0)),CONCATENATE(\"Dag \",KalenderDag-DATE(YEAR(KalenderDag),1,0)))","v":"Dag 174"}]
[]
[null,null,{"$f":"DagerOgUker+DATE(Kalenderår,6,1)-WEEKDAY(DATE(Kalenderår,6,1),(Ukestart=\"MAN\")+1)+29","v":"2018-06-24"},"2018-06-25","2018-06-26","2018-06-27","2018-06-28","2018-06-29","2018-06-30"]
[null,null,{"$f":"IF(WEEKDAY(KalenderDag)=Ukestartverdi,CONCATENATE(\"Uke \",WEEKNUM(KalenderDag),\"/Dag \",KalenderDag-DATE(YEAR(KalenderDag),1,0)),CONCATENATE(\"Dag \",KalenderDag-DATE(YEAR(KalenderDag),1,0)))","v":"Uke 26/Dag 175"},{"$f":"IF(WEEKDAY(KalenderDag)=Ukestartverdi,CONCATENATE(\"Uke \",WEEKNUM(KalenderDag),\"/Dag \",KalenderDag-DATE(YEAR(KalenderDag),1,0)),CONCATENATE(\"Dag \",KalenderDag-DATE(YEAR(KalenderDag),1,0)))","v":"Dag 176"},{"$f":"IF(WEEKDAY(KalenderDag)=Ukestartverdi,CONCATENATE(\"Uke \",WEEKNUM(KalenderDag),\"/Dag \",KalenderDag-DATE(YEAR(KalenderDag),1,0)),CONCATENATE(\"Dag \",KalenderDag-DATE(YEAR(KalenderDag),1,0)))","v":"Dag 177"},{"$f":"IF(WEEKDAY(KalenderDag)=Ukestartverdi,CONCATENATE(\"Uke \",WEEKNUM(KalenderDag),\"/Dag \",KalenderDag-DATE(YEAR(KalenderDag),1,0)),CONCATENATE(\"Dag \",KalenderDag-DATE(YEAR(KalenderDag),1,0)))","v":"Dag 178"},{"$f":"IF(WEEKDAY(KalenderDag)=Ukestartverdi,CONCATENATE(\"Uke \",WEEKNUM(KalenderDag),\"/Dag \",KalenderDag-DATE(YEAR(KalenderDag),1,0)),CONCATENATE(\"Dag \",KalenderDag-DATE(YEAR(KalenderDag),1,0)))","v":"Dag 179"},{"$f":"IF(WEEKDAY(KalenderDag)=Ukestartverdi,CONCATENATE(\"Uke \",WEEKNUM(KalenderDag),\"/Dag \",KalenderDag-DATE(YEAR(KalenderDag),1,0)),CONCATENATE(\"Dag \",KalenderDag-DATE(YEAR(KalenderDag),1,0)))","v":"Dag 180"},{"$f":"IF(WEEKDAY(KalenderDag)=Ukestartverdi,CONCATENATE(\"Uke \",WEEKNUM(KalenderDag),\"/Dag \",KalenderDag-DATE(YEAR(KalenderDag),1,0)),CONCATENATE(\"Dag \",KalenderDag-DATE(YEAR(KalenderDag),1,0)))","v":"Dag 181"}]
[{"$nulls":4},"NOTATER"]
[]
[null,null,{"$f":"DagerOgUker+DATE(Kalenderår,6,1)-WEEKDAY(DATE(Kalenderår,6,1),(Ukestart=\"MAN\")+1)+36","v":"2018-07-01"},"2018-07-02"]
[null,null,{"$f":"IF(WEEKDAY(KalenderDag)=Ukestartverdi,CONCATENATE(\"Uke \",WEEKNUM(KalenderDag),\"/Dag \",KalenderDag-DATE(YEAR(KalenderDag),1,0)),CONCATENATE(\"Dag \",KalenderDag-DATE(YEAR(KalenderDag),1,0)))","v":"Uke 27/Dag 182"},{"$f":"IF(WEEKDAY(KalenderDag)=Ukestartverdi,CONCATENATE(\"Uke \",WEEKNUM(KalenderDag),\"/Dag \",KalenderDag-DATE(YEAR(KalenderDag),1,0)),CONCATENATE(\"Dag \",KalenderDag-DATE(YEAR(KalenderDag),1,0)))","v":"Dag 183"}]

{"sheet":"JUL","index":6,"n_rows":20,"n_cols":9,"rows_kept":20,"merged":[[16,2,17,2],[17,4,19,8]]}
[null,"JUL",{"$f":"UPPER(TEXT(Ukestart,\"ddd\"))","v":"SØN"},{"$f":"UPPER(TEXT(D3,\"aaa\"))","v":"MAN"},"TIR","ONS","TOR","FRE","LØR"]
[null,{"$f":"Kalenderår","v":2018}]
[null,null,{"$f":"DagerOgUker+DATE(Kalenderår,7,1)-WEEKDAY(DATE(Kalenderår,7,1),(Ukestart=\"MAN\")+1)+1","v":"2018-07-01"},"2018-07-02","2018-07-03","2018-07-04","2018-07-05","2018-07-06","2018-07-07"]
[null,null,{"$f":"IF(DAY(KalenderDag)=1,CONCATENATE(\"Uke \",WEEKNUM(KalenderDag),\"/Dag \",KalenderDag-DATE(YEAR(KalenderDag),1,0)),CONCATENATE(\"Dag \",KalenderDag-DATE(YEAR(KalenderDag),1,0)))","v":"Uke 27/Dag 182"},{"$f":"IF(DAY(KalenderDag)=1,CONCATENATE(\"Uke \",WEEKNUM(KalenderDag),\"/Dag \",KalenderDag-DATE(YEAR(KalenderDag),1,0)),CONCATENATE(\"Dag \",KalenderDag-DATE(YEAR(KalenderDag),1,0)))","v":"Dag 183"},{"$f":"IF(DAY(KalenderDag)=1,CONCATENATE(\"Uke \",WEEKNUM(KalenderDag),\"/Dag \",KalenderDag-DATE(YEAR(KalenderDag),1,0)),CONCATENATE(\"Dag \",KalenderDag-DATE(YEAR(KalenderDag),1,0)))","v":"Dag 184"},{"$f":"IF(DAY(KalenderDag)=1,CONCATENATE(\"Uke \",WEEKNUM(KalenderDag),\"/Dag \",KalenderDag-DATE(YEAR(KalenderDag),1,0)),CONCATENATE(\"Dag \",KalenderDag-DATE(YEAR(KalenderDag),1,0)))","v":"Dag 185"},{"$f":"IF(DAY(KalenderDag)=1,CONCATENATE(\"Uke \",WEEKNUM(KalenderDag),\"/Dag \",KalenderDag-DATE(YEAR(KalenderDag),1,0)),CONCATENATE(\"Dag \",KalenderDag-DATE(YEAR(KalenderDag),1,0)))","v":"Dag 186"},{"$f":"IF(DAY(KalenderDag)=1,CONCATENATE(\"Uke \",WEEKNUM(KalenderDag),\"/Dag \",KalenderDag-DATE(YEAR(KalenderDag),1,0)),CONCATENATE(\"Dag \",KalenderDag-DATE(YEAR(KalenderDag),1,0)))","v":"Dag 187"},{"$f":"IF(DAY(KalenderDag)=1,CONCATENATE(\"Uke \",WEEKNUM(KalenderDag),\"/Dag \",KalenderDag-DATE(YEAR(KalenderDag),1,0)),CONCATENATE(\"Dag \",KalenderDag-DATE(YEAR(KalenderDag),1,0)))","v":"Dag 188"}]
[]
[null,null,{"$f":"DagerOgUker+DATE(Kalenderår,7,1)-WEEKDAY(DATE(Kalenderår,7,1),(Ukestart=\"MAN\")+1)+8","v":"2018-07-08"},"2018-07-09","2018-07-10","2018-07-11","2018-07-12","2018-07-13","2018-07-14"]
[null,null,{"$f":"IF(WEEKDAY(KalenderDag)=Ukestartverdi,CONCATENATE(\"Uke \",WEEKNUM(KalenderDag),\"/Dag \",KalenderDag-DATE(YEAR(KalenderDag),1,0)),CONCATENATE(\"Dag \",KalenderDag-DATE(YEAR(KalenderDag),1,0)))","v":"Uke 28/Dag 189"},{"$f":"IF(WEEKDAY(KalenderDag)=Ukestartverdi,CONCATENATE(\"Uke \",WEEKNUM(KalenderDag),\"/Dag \",KalenderDag-DATE(YEAR(KalenderDag),1,0)),CONCATENATE(\"Dag \",KalenderDag-DATE(YEAR(KalenderDag),1,0)))","v":"Dag 190"},{"$f":"IF(WEEKDAY(KalenderDag)=Ukestartverdi,CONCATENATE(\"Uke \",WEEKNUM(KalenderDag),\"/Dag \",KalenderDag-DATE(YEAR(KalenderDag),1,0)),CONCATENATE(\"Dag \",KalenderDag-DATE(YEAR(KalenderDag),1,0)))","v":"Dag 191"},{"$f":"IF(WEEKDAY(KalenderDag)=Ukestartverdi,CONCATENATE(\"Uke \",WEEKNUM(KalenderDag),\"/Dag \",KalenderDag-DATE(YEAR(KalenderDag),1,0)),CONCATENATE(\"Dag \",KalenderDag-DATE(YEAR(KalenderDag),1,0)))","v":"Dag 192"},{"$f":"IF(WEEKDAY(KalenderDag)=Ukestartverdi,CONCATENATE(\"Uke \",WEEKNUM(KalenderDag),\"/Dag \",KalenderDag-DATE(YEAR(KalenderDag),1,0)),CONCATENATE(\"Dag \",KalenderDag-DATE(YEAR(KalenderDag),1,0)))","v":"Dag 193"},{"$f":"IF(WEEKDAY(KalenderDag)=Ukestartverdi,CONCATENATE(\"Uke \",WEEKNUM(KalenderDag),\"/Dag \",KalenderDag-DATE(YEAR(KalenderDag),1,0)),CONCATENATE(\"Dag \",KalenderDag-DATE(YEAR(KalenderDag),1,0)))","v":"Dag 194"},{"$f":"IF(WEEKDAY(KalenderDag)=Ukestartverdi,CONCATENATE(\"Uke \",WEEKNUM(KalenderDag),\"/Dag \",KalenderDag-DATE(YEAR(KalenderDag),1,0)),CONCATENATE(\"Dag \",KalenderDag-DATE(YEAR(KalenderDag),1,0)))","v":"Dag 195"}]
[]
[null,null,{"$f":"DagerOgUker+DATE(Kalenderår,7,1)-WEEKDAY(DATE(Kalenderår,7,1),(Ukestart=\"MAN\")+1)+15","v":"2018-07-15"},"2018-07-16","2018-07-17","2018-07-18","2018-07-19","2018-07-20","2018-07-21"]
[null,null,{"$f":"IF(WEEKDAY(KalenderDag)=Ukestartverdi,CONCATENATE(\"Uke \",WEEKNUM(KalenderDag),\"/Dag \",KalenderDag-DATE(YEAR(KalenderDag),1,0)),CONCATENATE(\"Dag \",KalenderDag-DATE(YEAR(KalenderDag),1,0)))","v":"Uke 29/Dag 196"},{"$f":"IF(WEEKDAY(KalenderDag)=Ukestartverdi,CONCATENATE(\"Uke \",WEEKNUM(KalenderDag),\"/Dag \",KalenderDag-DATE(YEAR(KalenderDag),1,0)),CONCATENATE(\"Dag \",KalenderDag-DATE(YEAR(KalenderDag),1,0)))","v":"Dag 197"},{"$f":"IF(WEEKDAY(KalenderDag)=Ukestartverdi,CONCATENATE(\"Uke \",WEEKNUM(KalenderDag),\"/Dag \",KalenderDag-DATE(YEAR(KalenderDag),1,0)),CONCATENATE(\"Dag \",KalenderDag-DATE(YEAR(KalenderDag),1,0)))","v":"Dag 198"},{"$f":"IF(WEEKDAY(KalenderDag)=Ukestartverdi,CONCATENATE(\"Uke \",WEEKNUM(KalenderDag),\"/Dag \",KalenderDag-DATE(YEAR(KalenderDag),1,0)),CONCATENATE(\"Dag \",KalenderDag-DATE(YEAR(KalenderDag),1,0)))","v":"Dag 199"},{"$f":"IF(WEEKDAY(KalenderDag)=Ukestartverdi,CONCATENATE(\"Uke \",WEEKNUM(KalenderDag),\"/Dag \",KalenderDag-DATE(YEAR(KalenderDag),1,0)),CONCATENATE(\"Dag \",KalenderDag-DATE(YEAR(KalenderDag),1,0)))","v":"Dag 200"},{"$f":"IF(WEEKDAY(KalenderDag)=Ukestartverdi,CONCATENATE(\"Uke \",WEEKNUM(KalenderDag),\"/Dag \",KalenderDag-DATE(YEAR(KalenderDag),1,0)),CONCATENATE(\"Dag \",KalenderDag-DATE(YEAR(KalenderDag),1,0)))","v":"Dag 201"},{"$f":"IF(WEEKDAY(KalenderDag)=Ukestartverdi,CONCATENATE(\"Uke \",WEEKNUM(KalenderDag),\"/Dag \",KalenderDag-DATE(YEAR(KalenderDag),1,0)),CONCATENATE(\"Dag \",KalenderDag-DATE(YEAR(KalenderDag),1,0)))","v":"Dag 202"}]
[]
[null,null,{"$f":"DagerOgUker+DATE(Kalenderår,7,1)-WEEKDAY(DATE(Kalenderår,7,1),(Ukestart=\"MAN\")+1)+22","v":"2018-07-22"},"2018-07-23","2018-07-24","2018-07-25","2018-07-26","2018-07-27","2018-07-28"]
[null,null,{"$f":"IF(WEEKDAY(KalenderDag)=Ukestartverdi,CONCATENATE(\"Uke \",WEEKNUM(KalenderDag),\"/Dag \",KalenderDag-DATE(YEAR(KalenderDag),1,0)),CONCATENATE(\"Dag \",KalenderDag-DATE(YEAR(KalenderDag),1,0)))","v":"Uke 30/Dag 203"},{"$f":"IF(WEEKDAY(KalenderDag)=Ukestartverdi,CONCATENATE(\"Uke \",WEEKNUM(KalenderDag),\"/Dag \",KalenderDag-DATE(YEAR(KalenderDag),1,0)),CONCATENATE(\"Dag \",KalenderDag-DATE(YEAR(KalenderDag),1,0)))","v":"Dag 204"},{"$f":"IF(WEEKDAY(KalenderDag)=Ukestartverdi,CONCATENATE(\"Uke \",WEEKNUM(KalenderDag),\"/Dag \",KalenderDag-DATE(YEAR(KalenderDag),1,0)),CONCATENATE(\"Dag \",KalenderDag-DATE(YEAR(KalenderDag),1,0)))","v":"Dag 205"},{"$f":"IF(WEEKDAY(KalenderDag)=Ukestartverdi,CONCATENATE(\"Uke \",WEEKNUM(KalenderDag),\"/Dag \",KalenderDag-DATE(YEAR(KalenderDag),1,0)),CONCATENATE(\"Dag \",KalenderDag-DATE(YEAR(KalenderDag),1,0)))","v":"Dag 206"},{"$f":"IF(WEEKDAY(KalenderDag)=Ukestartverdi,CONCATENATE(\"Uke \",WEEKNUM(KalenderDag),\"/Dag \",KalenderDag-DATE(YEAR(KalenderDag),1,0)),CONCATENATE(\"Dag \",KalenderDag-DATE(YEAR(KalenderDag),1,0)))","v":"Dag 207"},{"$f":"IF(WEEKDAY(KalenderDag)=Ukestartverdi,CONCATENATE(\"Uke \",WEEKNUM(KalenderDag),\"/Dag \",KalenderDag-DATE(YEAR(KalenderDag),1,0)),CONCATENATE(\"Dag \",KalenderDag-DATE(YEAR(KalenderDag),1,0)))","v":"Dag 208"},{"$f":"IF(WEEKDAY(KalenderDag)=Ukestartverdi,CONCATENATE(\"Uke \",WEEKNUM(KalenderDag),\"/Dag \",KalenderDag-DATE(YEAR(KalenderDag),1,0)),CONCATENATE(\"Dag \",KalenderDag-DATE(YEAR(KalenderDag),1,0)))","v":"Dag 209"}]
[]
[null,null,{"$f":"DagerOgUker+DATE(Kalenderår,7,1)-WEEKDAY(DATE(Kalenderår,7,1),(Ukestart=\"MAN\")+1)+29","v":"2018-07-29"},"2018-07-30","2018-07-31","2018-08-01","2018-08-02","2018-08-03","2018-08-04"]
[null,null,{"$f":"IF(WEEKDAY(KalenderDag)=Ukestartverdi,CONCATENATE(\"Uke \",WEEKNUM(KalenderDag),\"/Dag \",KalenderDag-DATE(YEAR(KalenderDag),1,0)),CONCATENATE(\"Dag \",KalenderDag-DATE(YEAR(KalenderDag),1,0)))","v":"Uke 31/Dag 210"},{"$f":"IF(WEEKDAY(KalenderDag)=Ukestartverdi,CONCATENATE(\"Uke \",WEEKNUM(KalenderDag),\"/Dag \",KalenderDag-DATE(YEAR(KalenderDag),1,0)),CONCATENATE(\"Dag \",KalenderDag-DATE(YEAR(KalenderDag),1,0)))","v":"Dag 211"},{"$f":"IF(WEEKDAY(KalenderDag)=Ukestartverdi,CONCATENATE(\"Uke \",WEEKNUM(KalenderDag),\"/Dag \",KalenderDag-DATE(YEAR(KalenderDag),1,0)),CONCATENATE(\"Dag \",KalenderDag-DATE(YEAR(KalenderDag),1,0)))","v":"Dag 212"},{"$f":"IF(WEEKDAY(KalenderDag)=Ukestartverdi,CONCATENATE(\"Uke \",WEEKNUM(KalenderDag),\"/Dag \",KalenderDag-DATE(YEAR(KalenderDag),1,0)),CONCATENATE(\"Dag \",KalenderDag-DATE(YEAR(KalenderDag),1,0)))","v":"Dag 213"},{"$f":"IF(WEEKDAY(KalenderDag)=Ukestartverdi,CONCATENATE(\"Uke \",WEEKNUM(KalenderDag),\"/Dag \",KalenderDag-DATE(YEAR(KalenderDag),1,0)),CONCATENATE(\"Dag \",KalenderDag-DATE(YEAR(KalenderDag),1,0)))","v":"Dag 214"},{"$f":"IF(WEEKDAY(KalenderDag)=Ukestartverdi,CONCATENATE(\"Uke \",WEEKNUM(KalenderDag),\"/Dag \",KalenderDag-DATE(YEAR(KalenderDag),1,0)),CONCATENATE(\"Dag \",KalenderDag-DATE(YEAR(KalenderDag),1,0)))","v":"Dag 215"},{"$f":"IF(WEEKDAY(KalenderDag)=Ukestartverdi,CONCATENATE(\"Uke \",WEEKNUM(KalenderDag),\"/Dag \",KalenderDag-DATE(YEAR(KalenderDag),1,0)),CONCATENATE(\"Dag \",KalenderDag-DATE(YEAR(KalenderDag),1,0)))","v":"Dag 216"}]
[{"$nulls":4},"NOTATER"]
[]
[null,null,{"$f":"DagerOgUker+DATE(Kalenderår,7,1)-WEEKDAY(DATE(Kalenderår,7,1),(Ukestart=\"MAN\")+1)+36","v":"2018-08-05"},"2018-08-06"]
[null,null,{"$f":"IF(WEEKDAY(KalenderDag)=Ukestartverdi,CONCATENATE(\"Uke \",WEEKNUM(KalenderDag),\"/Dag \",KalenderDag-DATE(YEAR(KalenderDag),1,0)),CONCATENATE(\"Dag \",KalenderDag-DATE(YEAR(KalenderDag),1,0)))","v":"Uke 32/Dag 217"},{"$f":"IF(WEEKDAY(KalenderDag)=Ukestartverdi,CONCATENATE(\"Uke \",WEEKNUM(KalenderDag),\"/Dag \",KalenderDag-DATE(YEAR(KalenderDag),1,0)),CONCATENATE(\"Dag \",KalenderDag-DATE(YEAR(KalenderDag),1,0)))","v":"Dag 218"}]

{"sheet":"AUG","index":7,"n_rows":20,"n_cols":9,"rows_kept":20,"merged":[[16,2,17,2],[17,4,19,8]]}
[null,"AUG",{"$f":"UPPER(TEXT(Ukestart,\"ddd\"))","v":"SØN"},{"$f":"UPPER(TEXT(D3,\"aaa\"))","v":"MAN"},"TIR","ONS","TOR","FRE","LØR"]
[null,{"$f":"Kalenderår","v":2018}]
[null,null,{"$f":"DagerOgUker+DATE(Kalenderår,8,1)-WEEKDAY(DATE(Kalenderår,8,1),(Ukestart=\"MAN\")+1)+1","v":"2018-07-29"},"2018-07-30","2018-07-31","2018-08-01","2018-08-02","2018-08-03","2018-08-04"]
[null,null,{"$f":"IF(DAY(KalenderDag)=1,CONCATENATE(\"Uke \",WEEKNUM(KalenderDag),\"/Dag \",KalenderDag-DATE(YEAR(KalenderDag),1,0)),CONCATENATE(\"Dag \",KalenderDag-DATE(YEAR(KalenderDag),1,0)))","v":"Dag 210"},{"$f":"IF(DAY(KalenderDag)=1,CONCATENATE(\"Uke \",WEEKNUM(KalenderDag),\"/Dag \",KalenderDag-DATE(YEAR(KalenderDag),1,0)),CONCATENATE(\"Dag \",KalenderDag-DATE(YEAR(KalenderDag),1,0)))","v":"Dag 211"},{"$f":"IF(DAY(KalenderDag)=1,CONCATENATE(\"Uke \",WEEKNUM(KalenderDag),\"/Dag \",KalenderDag-DATE(YEAR(KalenderDag),1,0)),CONCATENATE(\"Dag \",KalenderDag-DATE(YEAR(KalenderDag),1,0)))","v":"Dag 212"},{"$f":"IF(DAY(KalenderDag)=1,CONCATENATE(\"Uke \",WEEKNUM(KalenderDag),\"/Dag \",KalenderDag-DATE(YEAR(KalenderDag),1,0)),CONCATENATE(\"Dag \",KalenderDag-DATE(YEAR(KalenderDag),1,0)))","v":"Uke 31/Dag 213"},{"$f":"IF(DAY(KalenderDag)=1,CONCATENATE(\"Uke \",WEEKNUM(KalenderDag),\"/Dag \",KalenderDag-DATE(YEAR(KalenderDag),1,0)),CONCATENATE(\"Dag \",KalenderDag-DATE(YEAR(KalenderDag),1,0)))","v":"Dag 214"},{"$f":"IF(DAY(KalenderDag)=1,CONCATENATE(\"Uke \",WEEKNUM(KalenderDag),\"/Dag \",KalenderDag-DATE(YEAR(KalenderDag),1,0)),CONCATENATE(\"Dag \",KalenderDag-DATE(YEAR(KalenderDag),1,0)))","v":"Dag 215"},{"$f":"IF(DAY(KalenderDag)=1,CONCATENATE(\"Uke \",WEEKNUM(KalenderDag),\"/Dag \",KalenderDag-DATE(YEAR(KalenderDag),1,0)),CONCATENATE(\"Dag \",KalenderDag-DATE(YEAR(KalenderDag),1,0)))","v":"Dag 216"}]
[]
[null,null,{"$f":"DagerOgUker+DATE(Kalenderår,8,1)-WEEKDAY(DATE(Kalenderår,8,1),(Ukestart=\"MAN\")+1)+8","v":"2018-08-05"},"2018-08-06","2018-08-07","2018-08-08","2018-08-09","2018-08-10","2018-08-11"]
[null,null,{"$f":"IF(WEEKDAY(KalenderDag)=Ukestartverdi,CONCATENATE(\"Uke \",WEEKNUM(KalenderDag),\"/Dag \",KalenderDag-DATE(YEAR(KalenderDag),1,0)),CONCATENATE(\"Dag \",KalenderDag-DATE(YEAR(KalenderDag),1,0)))","v":"Uke 32/Dag 217"},{"$f":"IF(WEEKDAY(KalenderDag)=Ukestartverdi,CONCATENATE(\"Uke \",WEEKNUM(KalenderDag),\"/Dag \",KalenderDag-DATE(YEAR(KalenderDag),1,0)),CONCATENATE(\"Dag \",KalenderDag-DATE(YEAR(KalenderDag),1,0)))","v":"Dag 218"},{"$f":"IF(WEEKDAY(KalenderDag)=Ukestartverdi,CONCATENATE(\"Uke \",WEEKNUM(KalenderDag),\"/Dag \",KalenderDag-DATE(YEAR(KalenderDag),1,0)),CONCATENATE(\"Dag \",KalenderDag-DATE(YEAR(KalenderDag),1,0)))","v":"Dag 219"},{"$f":"IF(WEEKDAY(KalenderDag)=Ukestartverdi,CONCATENATE(\"Uke \",WEEKNUM(KalenderDag),\"/Dag \",KalenderDag-DATE(YEAR(KalenderDag),1,0)),CONCATENATE(\"Dag \",KalenderDag-DATE(YEAR(KalenderDag),1,0)))","v":"Dag 220"},{"$f":"IF(WEEKDAY(KalenderDag)=Ukestartverdi,CONCATENATE(\"Uke \",WEEKNUM(KalenderDag),\"/Dag \",KalenderDag-DATE(YEAR(KalenderDag),1,0)),CONCATENATE(\"Dag \",KalenderDag-DATE(YEAR(KalenderDag),1,0)))","v":"Dag 221"},{"$f":"IF(WEEKDAY(KalenderDag)=Ukestartverdi,CONCATENATE(\"Uke \",WEEKNUM(KalenderDag),\"/Dag \",KalenderDag-DATE(YEAR(KalenderDag),1,0)),CONCATENATE(\"Dag \",KalenderDag-DATE(YEAR(KalenderDag),1,0)))","v":"Dag 222"},{"$f":"IF(WEEKDAY(KalenderDag)=Ukestartverdi,CONCATENATE(\"Uke \",WEEKNUM(KalenderDag),\"/Dag \",KalenderDag-DATE(YEAR(KalenderDag),1,0)),CONCATENATE(\"Dag \",KalenderDag-DATE(YEAR(KalenderDag),1,0)))","v":"Dag 223"}]
[]
[null,null,{"$f":"DagerOgUker+DATE(Kalenderår,8,1)-WEEKDAY(DATE(Kalenderår,8,1),(Ukestart=\"MAN\")+1)+15","v":"2018-08-12"},"2018-08-13","2018-08-14","2018-08-15","2018-08-16","2018-08-17","2018-08-18"]
[null,null,{"$f":"IF(WEEKDAY(KalenderDag)=Ukestartverdi,CONCATENATE(\"Uke \",WEEKNUM(KalenderDag),\"/Dag \",KalenderDag-DATE(YEAR(KalenderDag),1,0)),CONCATENATE(\"Dag \",KalenderDag-DATE(YEAR(KalenderDag),1,0)))","v":"Uke 33/Dag 224"},{"$f":"IF(WEEKDAY(KalenderDag)=Ukestartverdi,CONCATENATE(\"Uke \",WEEKNUM(KalenderDag),\"/Dag \",KalenderDag-DATE(YEAR(KalenderDag),1,0)),CONCATENATE(\"Dag \",KalenderDag-DATE(YEAR(KalenderDag),1,0)))","v":"Dag 225"},{"$f":"IF(WEEKDAY(KalenderDag)=Ukestartverdi,CONCATENATE(\"Uke \",WEEKNUM(KalenderDag),\"/Dag \",KalenderDag-DATE(YEAR(KalenderDag),1,0)),CONCATENATE(\"Dag \",KalenderDag-DATE(YEAR(KalenderDag),1,0)))","v":"Dag 226"},{"$f":"IF(WEEKDAY(KalenderDag)=Ukestartverdi,CONCATENATE(\"Uke \",WEEKNUM(KalenderDag),\"/Dag \",KalenderDag-DATE(YEAR(KalenderDag),1,0)),CONCATENATE(\"Dag \",KalenderDag-DATE(YEAR(KalenderDag),1,0)))","v":"Dag 227"},{"$f":"IF(WEEKDAY(KalenderDag)=Ukestartverdi,CONCATENATE(\"Uke \",WEEKNUM(KalenderDag),\"/Dag \",KalenderDag-DATE(YEAR(KalenderDag),1,0)),CONCATENATE(\"Dag \",KalenderDag-DATE(YEAR(KalenderDag),1,0)))","v":"Dag 228"},{"$f":"IF(WEEKDAY(KalenderDag)=Ukestartverdi,CONCATENATE(\"Uke \",WEEKNUM(KalenderDag),\"/Dag \",KalenderDag-DATE(YEAR(KalenderDag),1,0)),CONCATENATE(\"Dag \",KalenderDag-DATE(YEAR(KalenderDag),1,0)))","v":"Dag 229"},{"$f":"IF(WEEKDAY(KalenderDag)=Ukestartverdi,CONCATENATE(\"Uke \",WEEKNUM(KalenderDag),\"/Dag \",KalenderDag-DATE(YEAR(KalenderDag),1,0)),CONCATENATE(\"Dag \",KalenderDag-DATE(YEAR(KalenderDag),1,0)))","v":"Dag 230"}]
[]
[null,null,{"$f":"DagerOgUker+DATE(Kalenderår,8,1)-WEEKDAY(DATE(Kalenderår,8,1),(Ukestart=\"MAN\")+1)+22","v":"2018-08-19"},"2018-08-20","2018-08-21","2018-08-22","2018-08-23","2018-08-24","2018-08-25"]
[null,null,{"$f":"IF(WEEKDAY(KalenderDag)=Ukestartverdi,CONCATENATE(\"Uke \",WEEKNUM(KalenderDag),\"/Dag \",KalenderDag-DATE(YEAR(KalenderDag),1,0)),CONCATENATE(\"Dag \",KalenderDag-DATE(YEAR(KalenderDag),1,0)))","v":"Uke 34/Dag 231"},{"$f":"IF(WEEKDAY(KalenderDag)=Ukestartverdi,CONCATENATE(\"Uke \",WEEKNUM(KalenderDag),\"/Dag \",KalenderDag-DATE(YEAR(KalenderDag),1,0)),CONCATENATE(\"Dag \",KalenderDag-DATE(YEAR(KalenderDag),1,0)))","v":"Dag 232"},{"$f":"IF(WEEKDAY(KalenderDag)=Ukestartverdi,CONCATENATE(\"Uke \",WEEKNUM(KalenderDag),\"/Dag \",KalenderDag-DATE(YEAR(KalenderDag),1,0)),CONCATENATE(\"Dag \",KalenderDag-DATE(YEAR(KalenderDag),1,0)))","v":"Dag 233"},{"$f":"IF(WEEKDAY(KalenderDag)=Ukestartverdi,CONCATENATE(\"Uke \",WEEKNUM(KalenderDag),\"/Dag \",KalenderDag-DATE(YEAR(KalenderDag),1,0)),CONCATENATE(\"Dag \",KalenderDag-DATE(YEAR(KalenderDag),1,0)))","v":"Dag 234"},{"$f":"IF(WEEKDAY(KalenderDag)=Ukestartverdi,CONCATENATE(\"Uke \",WEEKNUM(KalenderDag),\"/Dag \",KalenderDag-DATE(YEAR(KalenderDag),1,0)),CONCATENATE(\"Dag \",KalenderDag-DATE(YEAR(KalenderDag),1,0)))","v":"Dag 235"},{"$f":"IF(WEEKDAY(KalenderDag)=Ukestartverdi,CONCATENATE(\"Uke \",WEEKNUM(KalenderDag),\"/Dag \",KalenderDag-DATE(YEAR(KalenderDag),1,0)),CONCATENATE(\"Dag \",KalenderDag-DATE(YEAR(KalenderDag),1,0)))","v":"Dag 236"},{"$f":"IF(WEEKDAY(KalenderDag)=Ukestartverdi,CONCATENATE(\"Uke \",WEEKNUM(KalenderDag),\"/Dag \",KalenderDag-DATE(YEAR(KalenderDag),1,0)),CONCATENATE(\"Dag \",KalenderDag-DATE(YEAR(KalenderDag),1,0)))","v":"Dag 237"}]
[]
[null,null,{"$f":"DagerOgUker+DATE(Kalenderår,8,1)-WEEKDAY(DATE(Kalenderår,8,1),(Ukestart=\"MAN\")+1)+29","v":"2018-08-26"},"2018-08-27","2018-08-28","2018-08-29","2018-08-30","2018-08-31","2018-09-01"]
[null,null,{"$f":"IF(WEEKDAY(KalenderDag)=Ukestartverdi,CONCATENATE(\"Uke \",WEEKNUM(KalenderDag),\"/Dag \",KalenderDag-DATE(YEAR(KalenderDag),1,0)),CONCATENATE(\"Dag \",KalenderDag-DATE(YEAR(KalenderDag),1,0)))","v":"Uke 35/Dag 238"},{"$f":"IF(WEEKDAY(KalenderDag)=Ukestartverdi,CONCATENATE(\"Uke \",WEEKNUM(KalenderDag),\"/Dag \",KalenderDag-DATE(YEAR(KalenderDag),1,0)),CONCATENATE(\"Dag \",KalenderDag-DATE(YEAR(KalenderDag),1,0)))","v":"Dag 239"},{"$f":"IF(WEEKDAY(KalenderDag)=Ukestartverdi,CONCATENATE(\"Uke \",WEEKNUM(KalenderDag),\"/Dag \",KalenderDag-DATE(YEAR(KalenderDag),1,0)),CONCATENATE(\"Dag \",KalenderDag-DATE(YEAR(KalenderDag),1,0)))","v":"Dag 240"},{"$f":"IF(WEEKDAY(KalenderDag)=Ukestartverdi,CONCATENATE(\"Uke \",WEEKNUM(KalenderDag),\"/Dag \",KalenderDag-DATE(YEAR(KalenderDag),1,0)),CONCATENATE(\"Dag \",KalenderDag-DATE(YEAR(KalenderDag),1,0)))","v":"Dag 241"},{"$f":"IF(WEEKDAY(KalenderDag)=Ukestartverdi,CONCATENATE(\"Uke \",WEEKNUM(KalenderDag),\"/Dag \",KalenderDag-DATE(YEAR(KalenderDag),1,0)),CONCATENATE(\"Dag \",KalenderDag-DATE(YEAR(KalenderDag),1,0)))","v":"Dag 242"},{"$f":"IF(WEEKDAY(KalenderDag)=Ukestartverdi,CONCATENATE(\"Uke \",WEEKNUM(KalenderDag),\"/Dag \",KalenderDag-DATE(YEAR(KalenderDag),1,0)),CONCATENATE(\"Dag \",KalenderDag-DATE(YEAR(KalenderDag),1,0)))","v":"Dag 243"},{"$f":"IF(WEEKDAY(KalenderDag)=Ukestartverdi,CONCATENATE(\"Uke \",WEEKNUM(KalenderDag),\"/Dag \",KalenderDag-DATE(YEAR(KalenderDag),1,0)),CONCATENATE(\"Dag \",KalenderDag-DATE(YEAR(KalenderDag),1,0)))","v":"Dag 244"}]
[{"$nulls":4},"NOTATER"]
[]
[null,null,{"$f":"DagerOgUker+DATE(Kalenderår,8,1)-WEEKDAY(DATE(Kalenderår,8,1),(Ukestart=\"MAN\")+1)+36","v":"2018-09-02"},"2018-09-03"]
[null,null,{"$f":"IF(WEEKDAY(KalenderDag)=Ukestartverdi,CONCATENATE(\"Uke \",WEEKNUM(KalenderDag),\"/Dag \",KalenderDag-DATE(YEAR(KalenderDag),1,0)),CONCATENATE(\"Dag \",KalenderDag-DATE(YEAR(KalenderDag),1,0)))","v":"Uke 36/Dag 245"},{"$f":"IF(WEEKDAY(KalenderDag)=Ukestartverdi,CONCATENATE(\"Uke \",WEEKNUM(KalenderDag),\"/Dag \",KalenderDag-DATE(YEAR(KalenderDag),1,0)),CONCATENATE(\"Dag \",KalenderDag-DATE(YEAR(KalenderDag),1,0)))","v":"Dag 246"}]

{"sheet":"SEP","index":8,"n_rows":20,"n_cols":9,"rows_kept":20,"merged":[[16,2,17,2],[17,4,19,8]]}
[null,"SEP",{"$f":"UPPER(TEXT(Ukestart,\"ddd\"))","v":"SØN"},{"$f":"UPPER(TEXT(D3,\"aaa\"))","v":"MAN"},"TIR","ONS","TOR","FRE","LØR"]
[null,{"$f":"Kalenderår","v":2018}]
[null,null,{"$f":"DagerOgUker+DATE(Kalenderår,9,1)-WEEKDAY(DATE(Kalenderår,9,1),(Ukestart=\"MAN\")+1)+1","v":"2018-08-26"},"2018-08-27","2018-08-28","2018-08-29","2018-08-30","2018-08-31","2018-09-01"]
[null,null,{"$f":"IF(DAY(KalenderDag)=1,CONCATENATE(\"Uke \",WEEKNUM(KalenderDag),\"/Dag \",KalenderDag-DATE(YEAR(KalenderDag),1,0)),CONCATENATE(\"Dag \",KalenderDag-DATE(YEAR(KalenderDag),1,0)))","v":"Dag 238"},{"$f":"IF(DAY(KalenderDag)=1,CONCATENATE(\"Uke \",WEEKNUM(KalenderDag),\"/Dag \",KalenderDag-DATE(YEAR(KalenderDag),1,0)),CONCATENATE(\"Dag \",KalenderDag-DATE(YEAR(KalenderDag),1,0)))","v":"Dag 239"},{"$f":"IF(DAY(KalenderDag)=1,CONCATENATE(\"Uke \",WEEKNUM(KalenderDag),\"/Dag \",KalenderDag-DATE(YEAR(KalenderDag),1,0)),CONCATENATE(\"Dag \",KalenderDag-DATE(YEAR(KalenderDag),1,0)))","v":"Dag 240"},{"$f":"IF(DAY(KalenderDag)=1,CONCATENATE(\"Uke \",WEEKNUM(KalenderDag),\"/Dag \",KalenderDag-DATE(YEAR(KalenderDag),1,0)),CONCATENATE(\"Dag \",KalenderDag-DATE(YEAR(KalenderDag),1,0)))","v":"Dag 241"},{"$f":"IF(DAY(KalenderDag)=1,CONCATENATE(\"Uke \",WEEKNUM(KalenderDag),\"/Dag \",KalenderDag-DATE(YEAR(KalenderDag),1,0)),CONCATENATE(\"Dag \",KalenderDag-DATE(YEAR(KalenderDag),1,0)))","v":"Dag 242"},{"$f":"IF(DAY(KalenderDag)=1,CONCATENATE(\"Uke \",WEEKNUM(KalenderDag),\"/Dag \",KalenderDag-DATE(YEAR(KalenderDag),1,0)),CONCATENATE(\"Dag \",KalenderDag-DATE(YEAR(KalenderDag),1,0)))","v":"Dag 243"},{"$f":"IF(DAY(KalenderDag)=1,CONCATENATE(\"Uke \",WEEKNUM(KalenderDag),\"/Dag \",KalenderDag-DATE(YEAR(KalenderDag),1,0)),CONCATENATE(\"Dag \",KalenderDag-DATE(YEAR(KalenderDag),1,0)))","v":"Uke 35/Dag 244"}]
[]
[null,null,{"$f":"DagerOgUker+DATE(Kalenderår,9,1)-WEEKDAY(DATE(Kalenderår,9,1),(Ukestart=\"MAN\")+1)+8","v":"2018-09-02"},"2018-09-03","2018-09-04","2018-09-05","2018-09-06","2018-09-07","2018-09-08"]
[null,null,{"$f":"IF(WEEKDAY(KalenderDag)=Ukestartverdi,CONCATENATE(\"Uke \",WEEKNUM(KalenderDag),\"/Dag \",KalenderDag-DATE(YEAR(KalenderDag),1,0)),CONCATENATE(\"Dag \",KalenderDag-DATE(YEAR(KalenderDag),1,0)))","v":"Uke 36/Dag 245"},{"$f":"IF(WEEKDAY(KalenderDag)=Ukestartverdi,CONCATENATE(\"Uke \",WEEKNUM(KalenderDag),\"/Dag \",KalenderDag-DATE(YEAR(KalenderDag),1,0)),CONCATENATE(\"Dag \",KalenderDag-DATE(YEAR(KalenderDag),1,0)))","v":"Dag 246"},{"$f":"IF(WEEKDAY(KalenderDag)=Ukestartverdi,CONCATENATE(\"Uke \",WEEKNUM(KalenderDag),\"/Dag \",KalenderDag-DATE(YEAR(KalenderDag),1,0)),CONCATENATE(\"Dag \",KalenderDag-DATE(YEAR(KalenderDag),1,0)))","v":"Dag 247"},{"$f":"IF(WEEKDAY(KalenderDag)=Ukestartverdi,CONCATENATE(\"Uke \",WEEKNUM(KalenderDag),\"/Dag \",KalenderDag-DATE(YEAR(KalenderDag),1,0)),CONCATENATE(\"Dag \",KalenderDag-DATE(YEAR(KalenderDag),1,0)))","v":"Dag 248"},{"$f":"IF(WEEKDAY(KalenderDag)=Ukestartverdi,CONCATENATE(\"Uke \",WEEKNUM(KalenderDag),\"/Dag \",KalenderDag-DATE(YEAR(KalenderDag),1,0)),CONCATENATE(\"Dag \",KalenderDag-DATE(YEAR(KalenderDag),1,0)))","v":"Dag 249"},{"$f":"IF(WEEKDAY(KalenderDag)=Ukestartverdi,CONCATENATE(\"Uke \",WEEKNUM(KalenderDag),\"/Dag \",KalenderDag-DATE(YEAR(KalenderDag),1,0)),CONCATENATE(\"Dag \",KalenderDag-DATE(YEAR(KalenderDag),1,0)))","v":"Dag 250"},{"$f":"IF(WEEKDAY(KalenderDag)=Ukestartverdi,CONCATENATE(\"Uke \",WEEKNUM(KalenderDag),\"/Dag \",KalenderDag-DATE(YEAR(KalenderDag),1,0)),CONCATENATE(\"Dag \",KalenderDag-DATE(YEAR(KalenderDag),1,0)))","v":"Dag 251"}]
[]
[null,null,{"$f":"DagerOgUker+DATE(Kalenderår,9,1)-WEEKDAY(DATE(Kalenderår,9,1),(Ukestart=\"MAN\")+1)+15","v":"2018-09-09"},"2018-09-10","2018-09-11","2018-09-12","2018-09-13","2018-09-14","2018-09-15"]
[null,null,{"$f":"IF(WEEKDAY(KalenderDag)=Ukestartverdi,CONCATENATE(\"Uke \",WEEKNUM(KalenderDag),\"/Dag \",KalenderDag-DATE(YEAR(KalenderDag),1,0)),CONCATENATE(\"Dag \",KalenderDag-DATE(YEAR(KalenderDag),1,0)))","v":"Uke 37/Dag 252"},{"$f":"IF(WEEKDAY(KalenderDag)=Ukestartverdi,CONCATENATE(\"Uke \",WEEKNUM(KalenderDag),\"/Dag \",KalenderDag-DATE(YEAR(KalenderDag),1,0)),CONCATENATE(\"Dag \",KalenderDag-DATE(YEAR(KalenderDag),1,0)))","v":"Dag 253"},{"$f":"IF(WEEKDAY(KalenderDag)=Ukestartverdi,CONCATENATE(\"Uke \",WEEKNUM(KalenderDag),\"/Dag \",KalenderDag-DATE(YEAR(KalenderDag),1,0)),CONCATENATE(\"Dag \",KalenderDag-DATE(YEAR(KalenderDag),1,0)))","v":"Dag 254"},{"$f":"IF(WEEKDAY(KalenderDag)=Ukestartverdi,CONCATENATE(\"Uke \",WEEKNUM(KalenderDag),\"/Dag \",KalenderDag-DATE(YEAR(KalenderDag),1,0)),CONCATENATE(\"Dag \",KalenderDag-DATE(YEAR(KalenderDag),1,0)))","v":"Dag 255"},{"$f":"IF(WEEKDAY(KalenderDag)=Ukestartverdi,CONCATENATE(\"Uke \",WEEKNUM(KalenderDag),\"/Dag \",KalenderDag-DATE(YEAR(KalenderDag),1,0)),CONCATENATE(\"Dag \",KalenderDag-DATE(YEAR(KalenderDag),1,0)))","v":"Dag 256"},{"$f":"IF(WEEKDAY(KalenderDag)=Ukestartverdi,CONCATENATE(\"Uke \",WEEKNUM(KalenderDag),\"/Dag \",KalenderDag-DATE(YEAR(KalenderDag),1,0)),CONCATENATE(\"Dag \",KalenderDag-DATE(YEAR(KalenderDag),1,0)))","v":"Dag 257"},{"$f":"IF(WEEKDAY(KalenderDag)=Ukestartverdi,CONCATENATE(\"Uke \",WEEKNUM(KalenderDag),\"/Dag \",KalenderDag-DATE(YEAR(KalenderDag),1,0)),CONCATENATE(\"Dag \",KalenderDag-DATE(YEAR(KalenderDag),1,0)))","v":"Dag 258"}]
[]
[null,null,{"$f":"DagerOgUker+DATE(Kalenderår,9,1)-WEEKDAY(DATE(Kalenderår,9,1),(Ukestart=\"MAN\")+1)+22","v":"2018-09-16"},"2018-09-17","2018-09-18","2018-09-19","2018-09-20","2018-09-21","2018-09-22"]
[null,null,{"$f":"IF(WEEKDAY(KalenderDag)=Ukestartverdi,CONCATENATE(\"Uke \",WEEKNUM(KalenderDag),\"/Dag \",KalenderDag-DATE(YEAR(KalenderDag),1,0)),CONCATENATE(\"Dag \",KalenderDag-DATE(YEAR(KalenderDag),1,0)))","v":"Uke 38/Dag 259"},{"$f":"IF(WEEKDAY(KalenderDag)=Ukestartverdi,CONCATENATE(\"Uke \",WEEKNUM(KalenderDag),\"/Dag \",KalenderDag-DATE(YEAR(KalenderDag),1,0)),CONCATENATE(\"Dag \",KalenderDag-DATE(YEAR(KalenderDag),1,0)))","v":"Dag 260"},{"$f":"IF(WEEKDAY(KalenderDag)=Ukestartverdi,CONCATENATE(\"Uke \",WEEKNUM(KalenderDag),\"/Dag \",KalenderDag-DATE(YEAR(KalenderDag),1,0)),CONCATENATE(\"Dag \",KalenderDag-DATE(YEAR(KalenderDag),1,0)))","v":"Dag 261"},{"$f":"IF(WEEKDAY(KalenderDag)=Ukestartverdi,CONCATENATE(\"Uke \",WEEKNUM(KalenderDag),\"/Dag \",KalenderDag-DATE(YEAR(KalenderDag),1,0)),CONCATENATE(\"Dag \",KalenderDag-DATE(YEAR(KalenderDag),1,0)))","v":"Dag 262"},{"$f":"IF(WEEKDAY(KalenderDag)=Ukestartverdi,CONCATENATE(\"Uke \",WEEKNUM(KalenderDag),\"/Dag \",KalenderDag-DATE(YEAR(KalenderDag),1,0)),CONCATENATE(\"Dag \",KalenderDag-DATE(YEAR(KalenderDag),1,0)))","v":"Dag 263"},{"$f":"IF(WEEKDAY(KalenderDag)=Ukestartverdi,CONCATENATE(\"Uke \",WEEKNUM(KalenderDag),\"/Dag \",KalenderDag-DATE(YEAR(KalenderDag),1,0)),CONCATENATE(\"Dag \",KalenderDag-DATE(YEAR(KalenderDag),1,0)))","v":"Dag 264"},{"$f":"IF(WEEKDAY(KalenderDag)=Ukestartverdi,CONCATENATE(\"Uke \",WEEKNUM(KalenderDag),\"/Dag \",KalenderDag-DATE(YEAR(KalenderDag),1,0)),CONCATENATE(\"Dag \",KalenderDag-DATE(YEAR(KalenderDag),1,0)))","v":"Dag 265"}]
[]
[null,null,{"$f":"DagerOgUker+DATE(Kalenderår,9,1)-WEEKDAY(DATE(Kalenderår,9,1),(Ukestart=\"MAN\")+1)+29","v":"2018-09-23"},"2018-09-24","2018-09-25","2018-09-26","2018-09-27","2018-09-28","2018-09-29"]
[null,null,{"$f":"IF(WEEKDAY(KalenderDag)=Ukestartverdi,CONCATENATE(\"Uke \",WEEKNUM(KalenderDag),\"/Dag \",KalenderDag-DATE(YEAR(KalenderDag),1,0)),CONCATENATE(\"Dag \",KalenderDag-DATE(YEAR(KalenderDag),1,0)))","v":"Uke 39/Dag 266"},{"$f":"IF(WEEKDAY(KalenderDag)=Ukestartverdi,CONCATENATE(\"Uke \",WEEKNUM(KalenderDag),\"/Dag \",KalenderDag-DATE(YEAR(KalenderDag),1,0)),CONCATENATE(\"Dag \",KalenderDag-DATE(YEAR(KalenderDag),1,0)))","v":"Dag 267"},{"$f":"IF(WEEKDAY(KalenderDag)=Ukestartverdi,CONCATENATE(\"Uke \",WEEKNUM(KalenderDag),\"/Dag \",KalenderDag-DATE(YEAR(KalenderDag),1,0)),CONCATENATE(\"Dag \",KalenderDag-DATE(YEAR(KalenderDag),1,0)))","v":"Dag 268"},{"$f":"IF(WEEKDAY(KalenderDag)=Ukestartverdi,CONCATENATE(\"Uke \",WEEKNUM(KalenderDag),\"/Dag \",KalenderDag-DATE(YEAR(KalenderDag),1,0)),CONCATENATE(\"Dag \",KalenderDag-DATE(YEAR(KalenderDag),1,0)))","v":"Dag 269"},{"$f":"IF(WEEKDAY(KalenderDag)=Ukestartverdi,CONCATENATE(\"Uke \",WEEKNUM(KalenderDag),\"/Dag \",KalenderDag-DATE(YEAR(KalenderDag),1,0)),CONCATENATE(\"Dag \",KalenderDag-DATE(YEAR(KalenderDag),1,0)))","v":"Dag 270"},{"$f":"IF(WEEKDAY(KalenderDag)=Ukestartverdi,CONCATENATE(\"Uke \",WEEKNUM(KalenderDag),\"/Dag \",KalenderDag-DATE(YEAR(KalenderDag),1,0)),CONCATENATE(\"Dag \",KalenderDag-DATE(YEAR(KalenderDag),1,0)))","v":"Dag 271"},{"$f":"IF(WEEKDAY(KalenderDag)=Ukestartverdi,CONCATENATE(\"Uke \",WEEKNUM(KalenderDag),\"/Dag \",KalenderDag-DATE(YEAR(KalenderDag),1,0)),CONCATENATE(\"Dag \",KalenderDag-DATE(YEAR(KalenderDag),1,0)))","v":"Dag 272"}]
[{"$nulls":4},"NOTATER"]
[]
[null,null,{"$f":"DagerOgUker+DATE(Kalenderår,9,1)-WEEKDAY(DATE(Kalenderår,9,1),(Ukestart=\"MAN\")+1)+36","v":"2018-09-30"},"2018-10-01"]
[null,null,{"$f":"IF(WEEKDAY(KalenderDag)=Ukestartverdi,CONCATENATE(\"Uke \",WEEKNUM(KalenderDag),\"/Dag \",KalenderDag-DATE(YEAR(KalenderDag),1,0)),CONCATENATE(\"Dag \",KalenderDag-DATE(YEAR(KalenderDag),1,0)))","v":"Uke 40/Dag 273"},{"$f":"IF(WEEKDAY(KalenderDag)=Ukestartverdi,CONCATENATE(\"Uke \",WEEKNUM(KalenderDag),\"/Dag \",KalenderDag-DATE(YEAR(KalenderDag),1,0)),CONCATENATE(\"Dag \",KalenderDag-DATE(YEAR(KalenderDag),1,0)))","v":"Dag 274"}]

{"sheet":"OKT","index":9,"n_rows":20,"n_cols":9,"rows_kept":20,"merged":[[16,2,17,2],[17,4,19,8]]}
[null,"OKT",{"$f":"UPPER(TEXT(Ukestart,\"ddd\"))","v":"SØN"},{"$f":"UPPER(TEXT(D3,\"aaa\"))","v":"MAN"},"TIR","ONS","TOR","FRE","LØR"]
[null,{"$f":"Kalenderår","v":2018}]
[null,null,{"$f":"DagerOgUker+DATE(Kalenderår,10,1)-WEEKDAY(DATE(Kalenderår,10,1),(Ukestart=\"MAN\")+1)+1","v":"2018-09-30"},"2018-10-01","2018-10-02","2018-10-03","2018-10-04","2018-10-05","2018-10-06"]
[null,null,{"$f":"IF(DAY(KalenderDag)=1,CONCATENATE(\"Uke \",WEEKNUM(KalenderDag),\"/Dag \",KalenderDag-DATE(YEAR(KalenderDag),1,0)),CONCATENATE(\"Dag \",KalenderDag-DATE(YEAR(KalenderDag),1,0)))","v":"Dag 273"},{"$f":"IF(DAY(KalenderDag)=1,CONCATENATE(\"Uke \",WEEKNUM(KalenderDag),\"/Dag \",KalenderDag-DATE(YEAR(KalenderDag),1,0)),CONCATENATE(\"Dag \",KalenderDag-DATE(YEAR(KalenderDag),1,0)))","v":"Uke 40/Dag 274"},{"$f":"IF(DAY(KalenderDag)=1,CONCATENATE(\"Uke \",WEEKNUM(KalenderDag),\"/Dag \",KalenderDag-DATE(YEAR(KalenderDag),1,0)),CONCATENATE(\"Dag \",KalenderDag-DATE(YEAR(KalenderDag),1,0)))","v":"Dag 275"},{"$f":"IF(DAY(KalenderDag)=1,CONCATENATE(\"Uke \",WEEKNUM(KalenderDag),\"/Dag \",KalenderDag-DATE(YEAR(KalenderDag),1,0)),CONCATENATE(\"Dag \",KalenderDag-DATE(YEAR(KalenderDag),1,0)))","v":"Dag 276"},{"$f":"IF(DAY(KalenderDag)=1,CONCATENATE(\"Uke \",WEEKNUM(KalenderDag),\"/Dag \",KalenderDag-DATE(YEAR(KalenderDag),1,0)),CONCATENATE(\"Dag \",KalenderDag-DATE(YEAR(KalenderDag),1,0)))","v":"Dag 277"},{"$f":"IF(DAY(KalenderDag)=1,CONCATENATE(\"Uke \",WEEKNUM(KalenderDag),\"/Dag \",KalenderDag-DATE(YEAR(KalenderDag),1,0)),CONCATENATE(\"Dag \",KalenderDag-DATE(YEAR(KalenderDag),1,0)))","v":"Dag 278"},{"$f":"IF(DAY(KalenderDag)=1,CONCATENATE(\"Uke \",WEEKNUM(KalenderDag),\"/Dag \",KalenderDag-DATE(YEAR(KalenderDag),1,0)),CONCATENATE(\"Dag \",KalenderDag-DATE(YEAR(KalenderDag),1,0)))","v":"Dag 279"}]
[]
[null,null,{"$f":"DagerOgUker+DATE(Kalenderår,10,1)-WEEKDAY(DATE(Kalenderår,10,1),(Ukestart=\"MAN\")+1)+8","v":"2018-10-07"},"2018-10-08","2018-10-09","2018-10-10","2018-10-11","2018-10-12","2018-10-13"]
[null,null,{"$f":"IF(WEEKDAY(KalenderDag)=Ukestartverdi,CONCATENATE(\"Uke \",WEEKNUM(KalenderDag),\"/Dag \",KalenderDag-DATE(YEAR(KalenderDag),1,0)),CONCATENATE(\"Dag \",KalenderDag-DATE(YEAR(KalenderDag),1,0)))","v":"Uke 41/Dag 280"},{"$f":"IF(WEEKDAY(KalenderDag)=Ukestartverdi,CONCATENATE(\"Uke \",WEEKNUM(KalenderDag),\"/Dag \",KalenderDag-DATE(YEAR(KalenderDag),1,0)),CONCATENATE(\"Dag \",KalenderDag-DATE(YEAR(KalenderDag),1,0)))","v":"Dag 281"},{"$f":"IF(WEEKDAY(KalenderDag)=Ukestartverdi,CONCATENATE(\"Uke \",WEEKNUM(KalenderDag),\"/Dag \",KalenderDag-DATE(YEAR(KalenderDag),1,0)),CONCATENATE(\"Dag \",KalenderDag-DATE(YEAR(KalenderDag),1,0)))","v":"Dag 282"},{"$f":"IF(WEEKDAY(KalenderDag)=Ukestartverdi,CONCATENATE(\"Uke \",WEEKNUM(KalenderDag),\"/Dag \",KalenderDag-DATE(YEAR(KalenderDag),1,0)),CONCATENATE(\"Dag \",KalenderDag-DATE(YEAR(KalenderDag),1,0)))","v":"Dag 283"},{"$f":"IF(WEEKDAY(KalenderDag)=Ukestartverdi,CONCATENATE(\"Uke \",WEEKNUM(KalenderDag),\"/Dag \",KalenderDag-DATE(YEAR(KalenderDag),1,0)),CONCATENATE(\"Dag \",KalenderDag-DATE(YEAR(KalenderDag),1,0)))","v":"Dag 284"},{"$f":"IF(WEEKDAY(KalenderDag)=Ukestartverdi,CONCATENATE(\"Uke \",WEEKNUM(KalenderDag),\"/Dag \",KalenderDag-DATE(YEAR(KalenderDag),1,0)),CONCATENATE(\"Dag \",KalenderDag-DATE(YEAR(KalenderDag),1,0)))","v":"Dag 285"},{"$f":"IF(WEEKDAY(KalenderDag)=Ukestartverdi,CONCATENATE(\"Uke \",WEEKNUM(KalenderDag),\"/Dag \",KalenderDag-DATE(YEAR(KalenderDag),1,0)),CONCATENATE(\"Dag \",KalenderDag-DATE(YEAR(KalenderDag),1,0)))","v":"Dag 286"}]
[]
[null,null,{"$f":"DagerOgUker+DATE(Kalenderår,10,1)-WEEKDAY(DATE(Kalenderår,10,1),(Ukestart=\"MAN\")+1)+15","v":"2018-10-14"},"2018-10-15","2018-10-16","2018-10-17","2018-10-18","2018-10-19","2018-10-20"]
[null,null,{"$f":"IF(WEEKDAY(KalenderDag)=Ukestartverdi,CONCATENATE(\"Uke \",WEEKNUM(KalenderDag),\"/Dag \",KalenderDag-DATE(YEAR(KalenderDag),1,0)),CONCATENATE(\"Dag \",KalenderDag-DATE(YEAR(KalenderDag),1,0)))","v":"Uke 42/Dag 287"},{"$f":"IF(WEEKDAY(KalenderDag)=Ukestartverdi,CONCATENATE(\"Uke \",WEEKNUM(KalenderDag),\"/Dag \",KalenderDag-DATE(YEAR(KalenderDag),1,0)),CONCATENATE(\"Dag \",KalenderDag-DATE(YEAR(KalenderDag),1,0)))","v":"Dag 288"},{"$f":"IF(WEEKDAY(KalenderDag)=Ukestartverdi,CONCATENATE(\"Uke \",WEEKNUM(KalenderDag),\"/Dag \",KalenderDag-DATE(YEAR(KalenderDag),1,0)),CONCATENATE(\"Dag \",KalenderDag-DATE(YEAR(KalenderDag),1,0)))","v":"Dag 289"},{"$f":"IF(WEEKDAY(KalenderDag)=Ukestartverdi,CONCATENATE(\"Uke \",WEEKNUM(KalenderDag),\"/Dag \",KalenderDag-DATE(YEAR(KalenderDag),1,0)),CONCATENATE(\"Dag \",KalenderDag-DATE(YEAR(KalenderDag),1,0)))","v":"Dag 290"},{"$f":"IF(WEEKDAY(KalenderDag)=Ukestartverdi,CONCATENATE(\"Uke \",WEEKNUM(KalenderDag),\"/Dag \",KalenderDag-DATE(YEAR(KalenderDag),1,0)),CONCATENATE(\"Dag \",KalenderDag-DATE(YEAR(KalenderDag),1,0)))","v":"Dag 291"},{"$f":"IF(WEEKDAY(KalenderDag)=Ukestartverdi,CONCATENATE(\"Uke \",WEEKNUM(KalenderDag),\"/Dag \",KalenderDag-DATE(YEAR(KalenderDag),1,0)),CONCATENATE(\"Dag \",KalenderDag-DATE(YEAR(KalenderDag),1,0)))","v":"Dag 292"},{"$f":"IF(WEEKDAY(KalenderDag)=Ukestartverdi,CONCATENATE(\"Uke \",WEEKNUM(KalenderDag),\"/Dag \",KalenderDag-DATE(YEAR(KalenderDag),1,0)),CONCATENATE(\"Dag \",KalenderDag-DATE(YEAR(KalenderDag),1,0)))","v":"Dag 293"}]
[]
[null,null,{"$f":"DagerOgUker+DATE(Kalenderår,10,1)-WEEKDAY(DATE(Kalenderår,10,1),(Ukestart=\"MAN\")+1)+22","v":"2018-10-21"},"2018-10-22","2018-10-23","2018-10-24","2018-10-25","2018-10-26","2018-10-27"]
[null,null,{"$f":"IF(WEEKDAY(KalenderDag)=Ukestartverdi,CONCATENATE(\"Uke \",WEEKNUM(KalenderDag),\"/Dag \",KalenderDag-DATE(YEAR(KalenderDag),1,0)),CONCATENATE(\"Dag \",KalenderDag-DATE(YEAR(KalenderDag),1,0)))","v":"Uke 43/Dag 294"},{"$f":"IF(WEEKDAY(KalenderDag)=Ukestartverdi,CONCATENATE(\"Uke \",WEEKNUM(KalenderDag),\"/Dag \",KalenderDag-DATE(YEAR(KalenderDag),1,0)),CONCATENATE(\"Dag \",KalenderDag-DATE(YEAR(KalenderDag),1,0)))","v":"Dag 295"},{"$f":"IF(WEEKDAY(KalenderDag)=Ukestartverdi,CONCATENATE(\"Uke \",WEEKNUM(KalenderDag),\"/Dag \",KalenderDag-DATE(YEAR(KalenderDag),1,0)),CONCATENATE(\"Dag \",KalenderDag-DATE(YEAR(KalenderDag),1,0)))","v":"Dag 296"},{"$f":"IF(WEEKDAY(KalenderDag)=Ukestartverdi,CONCATENATE(\"Uke \",WEEKNUM(KalenderDag),\"/Dag \",KalenderDag-DATE(YEAR(KalenderDag),1,0)),CONCATENATE(\"Dag \",KalenderDag-DATE(YEAR(KalenderDag),1,0)))","v":"Dag 297"},{"$f":"IF(WEEKDAY(KalenderDag)=Ukestartverdi,CONCATENATE(\"Uke \",WEEKNUM(KalenderDag),\"/Dag \",KalenderDag-DATE(YEAR(KalenderDag),1,0)),CONCATENATE(\"Dag \",KalenderDag-DATE(YEAR(KalenderDag),1,0)))","v":"Dag 298"},{"$f":"IF(WEEKDAY(KalenderDag)=Ukestartverdi,CONCATENATE(\"Uke \",WEEKNUM(KalenderDag),\"/Dag \",KalenderDag-DATE(YEAR(KalenderDag),1,0)),CONCATENATE(\"Dag \",KalenderDag-DATE(YEAR(KalenderDag),1,0)))","v":"Dag 299"},{"$f":"IF(WEEKDAY(KalenderDag)=Ukestartverdi,CONCATENATE(\"Uke \",WEEKNUM(KalenderDag),\"/Dag \",KalenderDag-DATE(YEAR(KalenderDag),1,0)),CONCATENATE(\"Dag \",KalenderDag-DATE(YEAR(KalenderDag),1,0)))","v":"Dag 300"}]
[]
[null,null,{"$f":"DagerOgUker+DATE(Kalenderår,10,1)-WEEKDAY(DATE(Kalenderår,10,1),(Ukestart=\"MAN\")+1)+29","v":"2018-10-28"},"2018-10-29","2018-10-30","2018-10-31","2018-11-01","2018-11-02","2018-11-03"]
[null,null,{"$f":"IF(WEEKDAY(KalenderDag)=Ukestartverdi,CONCATENATE(\"Uke \",WEEKNUM(KalenderDag),\"/Dag \",KalenderDag-DATE(YEAR(KalenderDag),1,0)),CONCATENATE(\"Dag \",KalenderDag-DATE(YEAR(KalenderDag),1,0)))","v":"Uke 44/Dag 301"},{"$f":"IF(WEEKDAY(KalenderDag)=Ukestartverdi,CONCATENATE(\"Uke \",WEEKNUM(KalenderDag),\"/Dag \",KalenderDag-DATE(YEAR(KalenderDag),1,0)),CONCATENATE(\"Dag \",KalenderDag-DATE(YEAR(KalenderDag),1,0)))","v":"Dag 302"},{"$f":"IF(WEEKDAY(KalenderDag)=Ukestartverdi,CONCATENATE(\"Uke \",WEEKNUM(KalenderDag),\"/Dag \",KalenderDag-DATE(YEAR(KalenderDag),1,0)),CONCATENATE(\"Dag \",KalenderDag-DATE(YEAR(KalenderDag),1,0)))","v":"Dag 303"},{"$f":"IF(WEEKDAY(KalenderDag)=Ukestartverdi,CONCATENATE(\"Uke \",WEEKNUM(KalenderDag),\"/Dag \",KalenderDag-DATE(YEAR(KalenderDag),1,0)),CONCATENATE(\"Dag \",KalenderDag-DATE(YEAR(KalenderDag),1,0)))","v":"Dag 304"},{"$f":"IF(WEEKDAY(KalenderDag)=Ukestartverdi,CONCATENATE(\"Uke \",WEEKNUM(KalenderDag),\"/Dag \",KalenderDag-DATE(YEAR(KalenderDag),1,0)),CONCATENATE(\"Dag \",KalenderDag-DATE(YEAR(KalenderDag),1,0)))","v":"Dag 305"},{"$f":"IF(WEEKDAY(KalenderDag)=Ukestartverdi,CONCATENATE(\"Uke \",WEEKNUM(KalenderDag),\"/Dag \",KalenderDag-DATE(YEAR(KalenderDag),1,0)),CONCATENATE(\"Dag \",KalenderDag-DATE(YEAR(KalenderDag),1,0)))","v":"Dag 306"},{"$f":"IF(WEEKDAY(KalenderDag)=Ukestartverdi,CONCATENATE(\"Uke \",WEEKNUM(KalenderDag),\"/Dag \",KalenderDag-DATE(YEAR(KalenderDag),1,0)),CONCATENATE(\"Dag \",KalenderDag-DATE(YEAR(KalenderDag),1,0)))","v":"Dag 307"}]
[{"$nulls":4},"NOTATER"]
[]
[null,null,{"$f":"DagerOgUker+DATE(Kalenderår,10,1)-WEEKDAY(DATE(Kalenderår,10,1),(Ukestart=\"MAN\")+1)+36","v":"2018-11-04"},"2018-11-05"]
[null,null,{"$f":"IF(WEEKDAY(KalenderDag)=Ukestartverdi,CONCATENATE(\"Uke \",WEEKNUM(KalenderDag),\"/Dag \",KalenderDag-DATE(YEAR(KalenderDag),1,0)),CONCATENATE(\"Dag \",KalenderDag-DATE(YEAR(KalenderDag),1,0)))","v":"Uke 45/Dag 308"},{"$f":"IF(WEEKDAY(KalenderDag)=Ukestartverdi,CONCATENATE(\"Uke \",WEEKNUM(KalenderDag),\"/Dag \",KalenderDag-DATE(YEAR(KalenderDag),1,0)),CONCATENATE(\"Dag \",KalenderDag-DATE(YEAR(KalenderDag),1,0)))","v":"Dag 309"}]

{"sheet":"NOV","index":10,"n_rows":20,"n_cols":9,"rows_kept":20,"merged":[[16,2,17,2],[17,4,19,8]]}
[null,"NOV",{"$f":"UPPER(TEXT(Ukestart,\"ddd\"))","v":"SØN"},{"$f":"UPPER(TEXT(D3,\"aaa\"))","v":"MAN"},"TIR","ONS","TOR","FRE","LØR"]
[null,{"$f":"Kalenderår","v":2018}]
[null,null,{"$f":"DagerOgUker+DATE(Kalenderår,11,1)-WEEKDAY(DATE(Kalenderår,11,1),(Ukestart=\"MAN\")+1)+1","v":"2018-10-28"},"2018-10-29","2018-10-30","2018-10-31","2018-11-01","2018-11-02","2018-11-03"]
[null,null,{"$f":"IF(DAY(KalenderDag)=1,CONCATENATE(\"Uke \",WEEKNUM(KalenderDag),\"/Dag \",KalenderDag-DATE(YEAR(KalenderDag),1,0)),CONCATENATE(\"Dag \",KalenderDag-DATE(YEAR(KalenderDag),1,0)))","v":"Dag 301"},{"$f":"IF(DAY(KalenderDag)=1,CONCATENATE(\"Uke \",WEEKNUM(KalenderDag),\"/Dag \",KalenderDag-DATE(YEAR(KalenderDag),1,0)),CONCATENATE(\"Dag \",KalenderDag-DATE(YEAR(KalenderDag),1,0)))","v":"Dag 302"},{"$f":"IF(DAY(KalenderDag)=1,CONCATENATE(\"Uke \",WEEKNUM(KalenderDag),\"/Dag \",KalenderDag-DATE(YEAR(KalenderDag),1,0)),CONCATENATE(\"Dag \",KalenderDag-DATE(YEAR(KalenderDag),1,0)))","v":"Dag 303"},{"$f":"IF(DAY(KalenderDag)=1,CONCATENATE(\"Uke \",WEEKNUM(KalenderDag),\"/Dag \",KalenderDag-DATE(YEAR(KalenderDag),1,0)),CONCATENATE(\"Dag \",KalenderDag-DATE(YEAR(KalenderDag),1,0)))","v":"Dag 304"},{"$f":"IF(DAY(KalenderDag)=1,CONCATENATE(\"Uke \",WEEKNUM(KalenderDag),\"/Dag \",KalenderDag-DATE(YEAR(KalenderDag),1,0)),CONCATENATE(\"Dag \",KalenderDag-DATE(YEAR(KalenderDag),1,0)))","v":"Uke 44/Dag 305"},{"$f":"IF(DAY(KalenderDag)=1,CONCATENATE(\"Uke \",WEEKNUM(KalenderDag),\"/Dag \",KalenderDag-DATE(YEAR(KalenderDag),1,0)),CONCATENATE(\"Dag \",KalenderDag-DATE(YEAR(KalenderDag),1,0)))","v":"Dag 306"},{"$f":"IF(DAY(KalenderDag)=1,CONCATENATE(\"Uke \",WEEKNUM(KalenderDag),\"/Dag \",KalenderDag-DATE(YEAR(KalenderDag),1,0)),CONCATENATE(\"Dag \",KalenderDag-DATE(YEAR(KalenderDag),1,0)))","v":"Dag 307"}]
[]
[null,null,{"$f":"DagerOgUker+DATE(Kalenderår,11,1)-WEEKDAY(DATE(Kalenderår,11,1),(Ukestart=\"MAN\")+1)+8","v":"2018-11-04"},"2018-11-05","2018-11-06","2018-11-07","2018-11-08","2018-11-09","2018-11-10"]
[null,null,{"$f":"IF(WEEKDAY(KalenderDag)=Ukestartverdi,CONCATENATE(\"Uke \",WEEKNUM(KalenderDag),\"/Dag \",KalenderDag-DATE(YEAR(KalenderDag),1,0)),CONCATENATE(\"Dag \",KalenderDag-DATE(YEAR(KalenderDag),1,0)))","v":"Uke 45/Dag 308"},{"$f":"IF(WEEKDAY(KalenderDag)=Ukestartverdi,CONCATENATE(\"Uke \",WEEKNUM(KalenderDag),\"/Dag \",KalenderDag-DATE(YEAR(KalenderDag),1,0)),CONCATENATE(\"Dag \",KalenderDag-DATE(YEAR(KalenderDag),1,0)))","v":"Dag 309"},{"$f":"IF(WEEKDAY(KalenderDag)=Ukestartverdi,CONCATENATE(\"Uke \",WEEKNUM(KalenderDag),\"/Dag \",KalenderDag-DATE(YEAR(KalenderDag),1,0)),CONCATENATE(\"Dag \",KalenderDag-DATE(YEAR(KalenderDag),1,0)))","v":"Dag 310"},{"$f":"IF(WEEKDAY(KalenderDag)=Ukestartverdi,CONCATENATE(\"Uke \",WEEKNUM(KalenderDag),\"/Dag \",KalenderDag-DATE(YEAR(KalenderDag),1,0)),CONCATENATE(\"Dag \",KalenderDag-DATE(YEAR(KalenderDag),1,0)))","v":"Dag 311"},{"$f":"IF(WEEKDAY(KalenderDag)=Ukestartverdi,CONCATENATE(\"Uke \",WEEKNUM(KalenderDag),\"/Dag \",KalenderDag-DATE(YEAR(KalenderDag),1,0)),CONCATENATE(\"Dag \",KalenderDag-DATE(YEAR(KalenderDag),1,0)))","v":"Dag 312"},{"$f":"IF(WEEKDAY(KalenderDag)=Ukestartverdi,CONCATENATE(\"Uke \",WEEKNUM(KalenderDag),\"/Dag \",KalenderDag-DATE(YEAR(KalenderDag),1,0)),CONCATENATE(\"Dag \",KalenderDag-DATE(YEAR(KalenderDag),1,0)))","v":"Dag 313"},{"$f":"IF(WEEKDAY(KalenderDag)=Ukestartverdi,CONCATENATE(\"Uke \",WEEKNUM(KalenderDag),\"/Dag \",KalenderDag-DATE(YEAR(KalenderDag),1,0)),CONCATENATE(\"Dag \",KalenderDag-DATE(YEAR(KalenderDag),1,0)))","v":"Dag 314"}]
[]
[null,null,{"$f":"DagerOgUker+DATE(Kalenderår,11,1)-WEEKDAY(DATE(Kalenderår,11,1),(Ukestart=\"MAN\")+1)+15","v":"2018-11-11"},"2018-11-12","2018-11-13","2018-11-14","2018-11-15","2018-11-16","2018-11-17"]
[null,null,{"$f":"IF(WEEKDAY(KalenderDag)=Ukestartverdi,CONCATENATE(\"Uke \",WEEKNUM(KalenderDag),\"/Dag \",KalenderDag-DATE(YEAR(KalenderDag),1,0)),CONCATENATE(\"Dag \",KalenderDag-DATE(YEAR(KalenderDag),1,0)))","v":"Uke 46/Dag 315"},{"$f":"IF(WEEKDAY(KalenderDag)=Ukestartverdi,CONCATENATE(\"Uke \",WEEKNUM(KalenderDag),\"/Dag \",KalenderDag-DATE(YEAR(KalenderDag),1,0)),CONCATENATE(\"Dag \",KalenderDag-DATE(YEAR(KalenderDag),1,0)))","v":"Dag 316"},{"$f":"IF(WEEKDAY(KalenderDag)=Ukestartverdi,CONCATENATE(\"Uke \",WEEKNUM(KalenderDag),\"/Dag \",KalenderDag-DATE(YEAR(KalenderDag),1,0)),CONCATENATE(\"Dag \",KalenderDag-DATE(YEAR(KalenderDag),1,0)))","v":"Dag 317"},{"$f":"IF(WEEKDAY(KalenderDag)=Ukestartverdi,CONCATENATE(\"Uke \",WEEKNUM(KalenderDag),\"/Dag \",KalenderDag-DATE(YEAR(KalenderDag),1,0)),CONCATENATE(\"Dag \",KalenderDag-DATE(YEAR(KalenderDag),1,0)))","v":"Dag 318"},{"$f":"IF(WEEKDAY(KalenderDag)=Ukestartverdi,CONCATENATE(\"Uke \",WEEKNUM(KalenderDag),\"/Dag \",KalenderDag-DATE(YEAR(KalenderDag),1,0)),CONCATENATE(\"Dag \",KalenderDag-DATE(YEAR(KalenderDag),1,0)))","v":"Dag 319"},{"$f":"IF(WEEKDAY(KalenderDag)=Ukestartverdi,CONCATENATE(\"Uke \",WEEKNUM(KalenderDag),\"/Dag \",KalenderDag-DATE(YEAR(KalenderDag),1,0)),CONCATENATE(\"Dag \",KalenderDag-DATE(YEAR(KalenderDag),1,0)))","v":"Dag 320"},{"$f":"IF(WEEKDAY(KalenderDag)=Ukestartverdi,CONCATENATE(\"Uke \",WEEKNUM(KalenderDag),\"/Dag \",KalenderDag-DATE(YEAR(KalenderDag),1,0)),CONCATENATE(\"Dag \",KalenderDag-DATE(YEAR(KalenderDag),1,0)))","v":"Dag 321"}]
[]
[null,null,{"$f":"DagerOgUker+DATE(Kalenderår,11,1)-WEEKDAY(DATE(Kalenderår,11,1),(Ukestart=\"MAN\")+1)+22","v":"2018-11-18"},"2018-11-19","2018-11-20","2018-11-21","2018-11-22","2018-11-23","2018-11-24"]
[null,null,{"$f":"IF(WEEKDAY(KalenderDag)=Ukestartverdi,CONCATENATE(\"Uke \",WEEKNUM(KalenderDag),\"/Dag \",KalenderDag-DATE(YEAR(KalenderDag),1,0)),CONCATENATE(\"Dag \",KalenderDag-DATE(YEAR(KalenderDag),1,0)))","v":"Uke 47/Dag 322"},{"$f":"IF(WEEKDAY(KalenderDag)=Ukestartverdi,CONCATENATE(\"Uke \",WEEKNUM(KalenderDag),\"/Dag \",KalenderDag-DATE(YEAR(KalenderDag),1,0)),CONCATENATE(\"Dag \",KalenderDag-DATE(YEAR(KalenderDag),1,0)))","v":"Dag 323"},{"$f":"IF(WEEKDAY(KalenderDag)=Ukestartverdi,CONCATENATE(\"Uke \",WEEKNUM(KalenderDag),\"/Dag \",KalenderDag-DATE(YEAR(KalenderDag),1,0)),CONCATENATE(\"Dag \",KalenderDag-DATE(YEAR(KalenderDag),1,0)))","v":"Dag 324"},{"$f":"IF(WEEKDAY(KalenderDag)=Ukestartverdi,CONCATENATE(\"Uke \",WEEKNUM(KalenderDag),\"/Dag \",KalenderDag-DATE(YEAR(KalenderDag),1,0)),CONCATENATE(\"Dag \",KalenderDag-DATE(YEAR(KalenderDag),1,0)))","v":"Dag 325"},{"$f":"IF(WEEKDAY(KalenderDag)=Ukestartverdi,CONCATENATE(\"Uke \",WEEKNUM(KalenderDag),\"/Dag \",KalenderDag-DATE(YEAR(KalenderDag),1,0)),CONCATENATE(\"Dag \",KalenderDag-DATE(YEAR(KalenderDag),1,0)))","v":"Dag 326"},{"$f":"IF(WEEKDAY(KalenderDag)=Ukestartverdi,CONCATENATE(\"Uke \",WEEKNUM(KalenderDag),\"/Dag \",KalenderDag-DATE(YEAR(KalenderDag),1,0)),CONCATENATE(\"Dag \",KalenderDag-DATE(YEAR(KalenderDag),1,0)))","v":"Dag 327"},{"$f":"IF(WEEKDAY(KalenderDag)=Ukestartverdi,CONCATENATE(\"Uke \",WEEKNUM(KalenderDag),\"/Dag \",KalenderDag-DATE(YEAR(KalenderDag),1,0)),CONCATENATE(\"Dag \",KalenderDag-DATE(YEAR(KalenderDag),1,0)))","v":"Dag 328"}]
[]
[null,null,{"$f":"DagerOgUker+DATE(Kalenderår,11,1)-WEEKDAY(DATE(Kalenderår,11,1),(Ukestart=\"MAN\")+1)+29","v":"2018-11-25"},"2018-11-26","2018-11-27","2018-11-28","2018-11-29","2018-11-30","2018-12-01"]
[null,null,{"$f":"IF(WEEKDAY(KalenderDag)=Ukestartverdi,CONCATENATE(\"Uke \",WEEKNUM(KalenderDag),\"/Dag \",KalenderDag-DATE(YEAR(KalenderDag),1,0)),CONCATENATE(\"Dag \",KalenderDag-DATE(YEAR(KalenderDag),1,0)))","v":"Uke 48/Dag 329"},{"$f":"IF(WEEKDAY(KalenderDag)=Ukestartverdi,CONCATENATE(\"Uke \",WEEKNUM(KalenderDag),\"/Dag \",KalenderDag-DATE(YEAR(KalenderDag),1,0)),CONCATENATE(\"Dag \",KalenderDag-DATE(YEAR(KalenderDag),1,0)))","v":"Dag 330"},{"$f":"IF(WEEKDAY(KalenderDag)=Ukestartverdi,CONCATENATE(\"Uke \",WEEKNUM(KalenderDag),\"/Dag \",KalenderDag-DATE(YEAR(KalenderDag),1,0)),CONCATENATE(\"Dag \",KalenderDag-DATE(YEAR(KalenderDag),1,0)))","v":"Dag 331"},{"$f":"IF(WEEKDAY(KalenderDag)=Ukestartverdi,CONCATENATE(\"Uke \",WEEKNUM(KalenderDag),\"/Dag \",KalenderDag-DATE(YEAR(KalenderDag),1,0)),CONCATENATE(\"Dag \",KalenderDag-DATE(YEAR(KalenderDag),1,0)))","v":"Dag 332"},{"$f":"IF(WEEKDAY(KalenderDag)=Ukestartverdi,CONCATENATE(\"Uke \",WEEKNUM(KalenderDag),\"/Dag \",KalenderDag-DATE(YEAR(KalenderDag),1,0)),CONCATENATE(\"Dag \",KalenderDag-DATE(YEAR(KalenderDag),1,0)))","v":"Dag 333"},{"$f":"IF(WEEKDAY(KalenderDag)=Ukestartverdi,CONCATENATE(\"Uke \",WEEKNUM(KalenderDag),\"/Dag \",KalenderDag-DATE(YEAR(KalenderDag),1,0)),CONCATENATE(\"Dag \",KalenderDag-DATE(YEAR(KalenderDag),1,0)))","v":"Dag 334"},{"$f":"IF(WEEKDAY(KalenderDag)=Ukestartverdi,CONCATENATE(\"Uke \",WEEKNUM(KalenderDag),\"/Dag \",KalenderDag-DATE(YEAR(KalenderDag),1,0)),CONCATENATE(\"Dag \",KalenderDag-DATE(YEAR(KalenderDag),1,0)))","v":"Dag 335"}]
[{"$nulls":4},"NOTATER"]
[]
[null,null,{"$f":"DagerOgUker+DATE(Kalenderår,11,1)-WEEKDAY(DATE(Kalenderår,11,1),(Ukestart=\"MAN\")+1)+36","v":"2018-12-02"},"2018-12-03"]
[null,null,{"$f":"IF(WEEKDAY(KalenderDag)=Ukestartverdi,CONCATENATE(\"Uke \",WEEKNUM(KalenderDag),\"/Dag \",KalenderDag-DATE(YEAR(KalenderDag),1,0)),CONCATENATE(\"Dag \",KalenderDag-DATE(YEAR(KalenderDag),1,0)))","v":"Uke 49/Dag 336"},{"$f":"IF(WEEKDAY(KalenderDag)=Ukestartverdi,CONCATENATE(\"Uke \",WEEKNUM(KalenderDag),\"/Dag \",KalenderDag-DATE(YEAR(KalenderDag),1,0)),CONCATENATE(\"Dag \",KalenderDag-DATE(YEAR(KalenderDag),1,0)))","v":"Dag 337"}]

{"sheet":"DES","index":11,"n_rows":20,"n_cols":9,"rows_kept":20,"merged":[[16,2,17,2],[17,4,19,8]]}
[null,"DES",{"$f":"UPPER(TEXT(Ukestart,\"ddd\"))","v":"SØN"},{"$f":"UPPER(TEXT(D3,\"aaa\"))","v":"MAN"},"TIR","ONS","TOR","FRE","LØR"]
[null,{"$f":"Kalenderår","v":2018}]
[null,null,{"$f":"DagerOgUker+DATE(Kalenderår,12,1)-WEEKDAY(DATE(Kalenderår,12,1),(Ukestart=\"MAN\")+1)+1","v":"2018-11-25"},"2018-11-26","2018-11-27","2018-11-28","2018-11-29","2018-11-30","2018-12-01"]
[null,null,{"$f":"IF(DAY(KalenderDag)=1,CONCATENATE(\"Uke \",WEEKNUM(KalenderDag),\"/Dag \",KalenderDag-DATE(YEAR(KalenderDag),1,0)),CONCATENATE(\"Dag \",KalenderDag-DATE(YEAR(KalenderDag),1,0)))","v":"Dag 329"},{"$f":"IF(DAY(KalenderDag)=1,CONCATENATE(\"Uke \",WEEKNUM(KalenderDag),\"/Dag \",KalenderDag-DATE(YEAR(KalenderDag),1,0)),CONCATENATE(\"Dag \",KalenderDag-DATE(YEAR(KalenderDag),1,0)))","v":"Dag 330"},{"$f":"IF(DAY(KalenderDag)=1,CONCATENATE(\"Uke \",WEEKNUM(KalenderDag),\"/Dag \",KalenderDag-DATE(YEAR(KalenderDag),1,0)),CONCATENATE(\"Dag \",KalenderDag-DATE(YEAR(KalenderDag),1,0)))","v":"Dag 331"},{"$f":"IF(DAY(KalenderDag)=1,CONCATENATE(\"Uke \",WEEKNUM(KalenderDag),\"/Dag \",KalenderDag-DATE(YEAR(KalenderDag),1,0)),CONCATENATE(\"Dag \",KalenderDag-DATE(YEAR(KalenderDag),1,0)))","v":"Dag 332"},{"$f":"IF(DAY(KalenderDag)=1,CONCATENATE(\"Uke \",WEEKNUM(KalenderDag),\"/Dag \",KalenderDag-DATE(YEAR(KalenderDag),1,0)),CONCATENATE(\"Dag \",KalenderDag-DATE(YEAR(KalenderDag),1,0)))","v":"Dag 333"},{"$f":"IF(DAY(KalenderDag)=1,CONCATENATE(\"Uke \",WEEKNUM(KalenderDag),\"/Dag \",KalenderDag-DATE(YEAR(KalenderDag),1,0)),CONCATENATE(\"Dag \",KalenderDag-DATE(YEAR(KalenderDag),1,0)))","v":"Dag 334"},{"$f":"IF(DAY(KalenderDag)=1,CONCATENATE(\"Uke \",WEEKNUM(KalenderDag),\"/Dag \",KalenderDag-DATE(YEAR(KalenderDag),1,0)),CONCATENATE(\"Dag \",KalenderDag-DATE(YEAR(KalenderDag),1,0)))","v":"Uke 48/Dag 335"}]
[]
[null,null,{"$f":"DagerOgUker+DATE(Kalenderår,12,1)-WEEKDAY(DATE(Kalenderår,12,1),(Ukestart=\"MAN\")+1)+8","v":"2018-12-02"},"2018-12-03","2018-12-04","2018-12-05","2018-12-06","2018-12-07","2018-12-08"]
[null,null,{"$f":"IF(WEEKDAY(KalenderDag)=Ukestartverdi,CONCATENATE(\"Uke \",WEEKNUM(KalenderDag),\"/Dag \",KalenderDag-DATE(YEAR(KalenderDag),1,0)),CONCATENATE(\"Dag \",KalenderDag-DATE(YEAR(KalenderDag),1,0)))","v":"Uke 49/Dag 336"},{"$f":"IF(WEEKDAY(KalenderDag)=Ukestartverdi,CONCATENATE(\"Uke \",WEEKNUM(KalenderDag),\"/Dag \",KalenderDag-DATE(YEAR(KalenderDag),1,0)),CONCATENATE(\"Dag \",KalenderDag-DATE(YEAR(KalenderDag),1,0)))","v":"Dag 337"},{"$f":"IF(WEEKDAY(KalenderDag)=Ukestartverdi,CONCATENATE(\"Uke \",WEEKNUM(KalenderDag),\"/Dag \",KalenderDag-DATE(YEAR(KalenderDag),1,0)),CONCATENATE(\"Dag \",KalenderDag-DATE(YEAR(KalenderDag),1,0)))","v":"Dag 338"},{"$f":"IF(WEEKDAY(KalenderDag)=Ukestartverdi,CONCATENATE(\"Uke \",WEEKNUM(KalenderDag),\"/Dag \",KalenderDag-DATE(YEAR(KalenderDag),1,0)),CONCATENATE(\"Dag \",KalenderDag-DATE(YEAR(KalenderDag),1,0)))","v":"Dag 339"},{"$f":"IF(WEEKDAY(KalenderDag)=Ukestartverdi,CONCATENATE(\"Uke \",WEEKNUM(KalenderDag),\"/Dag \",KalenderDag-DATE(YEAR(KalenderDag),1,0)),CONCATENATE(\"Dag \",KalenderDag-DATE(YEAR(KalenderDag),1,0)))","v":"Dag 340"},{"$f":"IF(WEEKDAY(KalenderDag)=Ukestartverdi,CONCATENATE(\"Uke \",WEEKNUM(KalenderDag),\"/Dag \",KalenderDag-DATE(YEAR(KalenderDag),1,0)),CONCATENATE(\"Dag \",KalenderDag-DATE(YEAR(KalenderDag),1,0)))","v":"Dag 341"},{"$f":"IF(WEEKDAY(KalenderDag)=Ukestartverdi,CONCATENATE(\"Uke \",WEEKNUM(KalenderDag),\"/Dag \",KalenderDag-DATE(YEAR(KalenderDag),1,0)),CONCATENATE(\"Dag \",KalenderDag-DATE(YEAR(KalenderDag),1,0)))","v":"Dag 342"}]
[]
[null,null,{"$f":"DagerOgUker+DATE(Kalenderår,12,1)-WEEKDAY(DATE(Kalenderår,12,1),(Ukestart=\"MAN\")+1)+15","v":"2018-12-09"},"2018-12-10","2018-12-11","2018-12-12","2018-12-13","2018-12-14","2018-12-15"]
[null,null,{"$f":"IF(WEEKDAY(KalenderDag)=Ukestartverdi,CONCATENATE(\"Uke \",WEEKNUM(KalenderDag),\"/Dag \",KalenderDag-DATE(YEAR(KalenderDag),1,0)),CONCATENATE(\"Dag \",KalenderDag-DATE(YEAR(KalenderDag),1,0)))","v":"Uke 50/Dag 343"},{"$f":"IF(WEEKDAY(KalenderDag)=Ukestartverdi,CONCATENATE(\"Uke \",WEEKNUM(KalenderDag),\"/Dag \",KalenderDag-DATE(YEAR(KalenderDag),1,0)),CONCATENATE(\"Dag \",KalenderDag-DATE(YEAR(KalenderDag),1,0)))","v":"Dag 344"},{"$f":"IF(WEEKDAY(KalenderDag)=Ukestartverdi,CONCATENATE(\"Uke \",WEEKNUM(KalenderDag),\"/Dag \",KalenderDag-DATE(YEAR(KalenderDag),1,0)),CONCATENATE(\"Dag \",KalenderDag-DATE(YEAR(KalenderDag),1,0)))","v":"Dag 345"},{"$f":"IF(WEEKDAY(KalenderDag)=Ukestartverdi,CONCATENATE(\"Uke \",WEEKNUM(KalenderDag),\"/Dag \",KalenderDag-DATE(YEAR(KalenderDag),1,0)),CONCATENATE(\"Dag \",KalenderDag-DATE(YEAR(KalenderDag),1,0)))","v":"Dag 346"},{"$f":"IF(WEEKDAY(KalenderDag)=Ukestartverdi,CONCATENATE(\"Uke \",WEEKNUM(KalenderDag),\"/Dag \",KalenderDag-DATE(YEAR(KalenderDag),1,0)),CONCATENATE(\"Dag \",KalenderDag-DATE(YEAR(KalenderDag),1,0)))","v":"Dag 347"},{"$f":"IF(WEEKDAY(KalenderDag)=Ukestartverdi,CONCATENATE(\"Uke \",WEEKNUM(KalenderDag),\"/Dag \",KalenderDag-DATE(YEAR(KalenderDag),1,0)),CONCATENATE(\"Dag \",KalenderDag-DATE(YEAR(KalenderDag),1,0)))","v":"Dag 348"},{"$f":"IF(WEEKDAY(KalenderDag)=Ukestartverdi,CONCATENATE(\"Uke \",WEEKNUM(KalenderDag),\"/Dag \",KalenderDag-DATE(YEAR(KalenderDag),1,0)),CONCATENATE(\"Dag \",KalenderDag-DATE(YEAR(KalenderDag),1,0)))","v":"Dag 349"}]
[]
[null,null,{"$f":"DagerOgUker+DATE(Kalenderår,12,1)-WEEKDAY(DATE(Kalenderår,12,1),(Ukestart=\"MAN\")+1)+22","v":"2018-12-16"},"2018-12-17","2018-12-18","2018-12-19","2018-12-20","2018-12-21","2018-12-22"]
[null,null,{"$f":"IF(WEEKDAY(KalenderDag)=Ukestartverdi,CONCATENATE(\"Uke \",WEEKNUM(KalenderDag),\"/Dag \",KalenderDag-DATE(YEAR(KalenderDag),1,0)),CONCATENATE(\"Dag \",KalenderDag-DATE(YEAR(KalenderDag),1,0)))","v":"Uke 51/Dag 350"},{"$f":"IF(WEEKDAY(KalenderDag)=Ukestartverdi,CONCATENATE(\"Uke \",WEEKNUM(KalenderDag),\"/Dag \",KalenderDag-DATE(YEAR(KalenderDag),1,0)),CONCATENATE(\"Dag \",KalenderDag-DATE(YEAR(KalenderDag),1,0)))","v":"Dag 351"},{"$f":"IF(WEEKDAY(KalenderDag)=Ukestartverdi,CONCATENATE(\"Uke \",WEEKNUM(KalenderDag),\"/Dag \",KalenderDag-DATE(YEAR(KalenderDag),1,0)),CONCATENATE(\"Dag \",KalenderDag-DATE(YEAR(KalenderDag),1,0)))","v":"Dag 352"},{"$f":"IF(WEEKDAY(KalenderDag)=Ukestartverdi,CONCATENATE(\"Uke \",WEEKNUM(KalenderDag),\"/Dag \",KalenderDag-DATE(YEAR(KalenderDag),1,0)),CONCATENATE(\"Dag \",KalenderDag-DATE(YEAR(KalenderDag),1,0)))","v":"Dag 353"},{"$f":"IF(WEEKDAY(KalenderDag)=Ukestartverdi,CONCATENATE(\"Uke \",WEEKNUM(KalenderDag),\"/Dag \",KalenderDag-DATE(YEAR(KalenderDag),1,0)),CONCATENATE(\"Dag \",KalenderDag-DATE(YEAR(KalenderDag),1,0)))","v":"Dag 354"},{"$f":"IF(WEEKDAY(KalenderDag)=Ukestartverdi,CONCATENATE(\"Uke \",WEEKNUM(KalenderDag),\"/Dag \",KalenderDag-DATE(YEAR(KalenderDag),1,0)),CONCATENATE(\"Dag \",KalenderDag-DATE(YEAR(KalenderDag),1,0)))","v":"Dag 355"},{"$f":"IF(WEEKDAY(KalenderDag)=Ukestartverdi,CONCATENATE(\"Uke \",WEEKNUM(KalenderDag),\"/Dag \",KalenderDag-DATE(YEAR(KalenderDag),1,0)),CONCATENATE(\"Dag \",KalenderDag-DATE(YEAR(KalenderDag),1,0)))","v":"Dag 356"}]
[]
[null,null,{"$f":"DagerOgUker+DATE(Kalenderår,12,1)-WEEKDAY(DATE(Kalenderår,12,1),(Ukestart=\"MAN\")+1)+29","v":"2018-12-23"},"2018-12-24","2018-12-25","2018-12-26","2018-12-27","2018-12-28","2018-12-29"]
[null,null,{"$f":"IF(WEEKDAY(KalenderDag)=Ukestartverdi,CONCATENATE(\"Uke \",WEEKNUM(KalenderDag),\"/Dag \",KalenderDag-DATE(YEAR(KalenderDag),1,0)),CONCATENATE(\"Dag \",KalenderDag-DATE(YEAR(KalenderDag),1,0)))","v":"Uke 52/Dag 357"},{"$f":"IF(WEEKDAY(KalenderDag)=Ukestartverdi,CONCATENATE(\"Uke \",WEEKNUM(KalenderDag),\"/Dag \",KalenderDag-DATE(YEAR(KalenderDag),1,0)),CONCATENATE(\"Dag \",KalenderDag-DATE(YEAR(KalenderDag),1,0)))","v":"Dag 358"},{"$f":"IF(WEEKDAY(KalenderDag)=Ukestartverdi,CONCATENATE(\"Uke \",WEEKNUM(KalenderDag),\"/Dag \",KalenderDag-DATE(YEAR(KalenderDag),1,0)),CONCATENATE(\"Dag \",KalenderDag-DATE(YEAR(KalenderDag),1,0)))","v":"Dag 359"},{"$f":"IF(WEEKDAY(KalenderDag)=Ukestartverdi,CONCATENATE(\"Uke \",WEEKNUM(KalenderDag),\"/Dag \",KalenderDag-DATE(YEAR(KalenderDag),1,0)),CONCATENATE(\"Dag \",KalenderDag-DATE(YEAR(KalenderDag),1,0)))","v":"Dag 360"},{"$f":"IF(WEEKDAY(KalenderDag)=Ukestartverdi,CONCATENATE(\"Uke \",WEEKNUM(KalenderDag),\"/Dag \",KalenderDag-DATE(YEAR(KalenderDag),1,0)),CONCATENATE(\"Dag \",KalenderDag-DATE(YEAR(KalenderDag),1,0)))","v":"Dag 361"},{"$f":"IF(WEEKDAY(KalenderDag)=Ukestartverdi,CONCATENATE(\"Uke \",WEEKNUM(KalenderDag),\"/Dag \",KalenderDag-DATE(YEAR(KalenderDag),1,0)),CONCATENATE(\"Dag \",KalenderDag-DATE(YEAR(KalenderDag),1,0)))","v":"Dag 362"},{"$f":"IF(WEEKDAY(KalenderDag)=Ukestartverdi,CONCATENATE(\"Uke \",WEEKNUM(KalenderDag),\"/Dag \",KalenderDag-DATE(YEAR(KalenderDag),1,0)),CONCATENATE(\"Dag \",KalenderDag-DATE(YEAR(KalenderDag),1,0)))","v":"Dag 363"}]
[{"$nulls":4},"NOTATER"]
[]
[null,null,{"$f":"DagerOgUker+DATE(Kalenderår,12,1)-WEEKDAY(DATE(Kalenderår,12,1),(Ukestart=\"MAN\")+1)+36","v":"2018-12-30"},"2018-12-31"]
[null,null,{"$f":"IF(WEEKDAY(KalenderDag)=Ukestartverdi,CONCATENATE(\"Uke \",WEEKNUM(KalenderDag),\"/Dag \",KalenderDag-DATE(YEAR(KalenderDag),1,0)),CONCATENATE(\"Dag \",KalenderDag-DATE(YEAR(KalenderDag),1,0)))","v":"Uke 53/Dag 364"},{"$f":"IF(WEEKDAY(KalenderDag)=Ukestartverdi,CONCATENATE(\"Uke \",WEEKNUM(KalenderDag),\"/Dag \",KalenderDag-DATE(YEAR(KalenderDag),1,0)),CONCATENATE(\"Dag \",KalenderDag-DATE(YEAR(KalenderDag),1,0)))","v":"Dag 365"}]